{"text_format":"2","workbook":"xlsx","n_sheets":2,"sheets":["1. részajánlati kör","2. részajánlati kör"],"not_rendered":{"charts":0,"images":1,"macros":0,"external_links":0,"defined_names":1,"comments":0,"pivot_tables":0},"unopened":[],"bounds":{"document_bytes":16777216,"sheet_cells":100000,"run_cost":"one","rows_first":2000,"rows_last":500,"rows_between":2000,"halvings":0,"cell_chars":16384,"cell_head_chars":4096},"cells_cut":0,"cells_raw":0,"read":"whole","date_system":"1900"}

{"sheet":"1. részajánlati kör","index":0,"n_rows":931,"n_cols":20,"rows_kept":931,"cut":false,"hidden":false,"merged":[[460,7,499,7],[470,2,479,2],[470,4,479,4],[430,4,439,4],[440,4,449,4],[450,2,459,2],[450,4,459,4],[636,14,637,14],[636,15,637,15],[380,13,539,13],[618,13,620,13],[629,13,632,13],[622,3,623,3],[622,4,623,4],[622,5,623,5],[622,6,623,6],[622,13,623,13],[622,12,623,12],[744,12,783,12],[636,10,638,10],[578,2,586,2],[578,3,586,3],[560,2,568,2],[380,11,539,11],[380,12,539,12],[618,12,620,12],[420,4,429,4],[420,7,459,7],[605,4,613,4],[652,7,653,7],[551,3,559,3],[551,4,559,4],[420,3,439,3],[420,6,459,6],[410,4,419,4],[460,4,469,4],[480,4,489,4],[490,2,499,2],[490,4,499,4],[380,7,419,7],[500,7,539,7],[658,3,664,3],[2,13,25,13],[28,12,33,12],[6,5,9,5],[28,13,33,13],[10,5,13,5],[2,2,5,2],[2,4,5,4],[2,5,5,5],[6,2,9,2],[6,4,9,4],[2,11,25,11],[14,5,17,5],[22,5,25,5],[2,12,25,12],[14,2,17,2],[22,2,25,2],[18,4,21,4],[18,5,21,5],[22,4,25,4],[32,4,33,4],[32,5,33,5],[28,4,29,4],[28,5,29,5],[28,11,33,11],[924,0,926,10],[928,5,928,9],[930,5,930,9],[922,0,922,10],[923,0,923,10],[907,0,909,0],[907,2,909,2],[907,3,909,3],[877,0,879,0],[877,2,879,2],[877,3,879,3],[887,3,889,3],[887,4,889,4],[887,5,889,5],[887,6,889,6],[882,4,884,4],[882,5,884,5],[912,0,919,0],[912,2,915,2],[912,3,915,3],[912,4,915,4],[912,5,915,5],[912,6,915,6],[892,0,894,0],[2,0,25,0],[22,1,25,1],[14,4,17,4],[18,1,21,1],[10,2,13,2],[10,4,13,4],[18,2,21,2],[10,1,13,1],[2,1,5,1],[6,1,9,1],[14,1,17,1],[235,4,239,4],[281,4,285,4],[480,2,489,2],[480,3,499,3],[430,2,439,2],[267,4,275,4],[276,4,280,4],[460,6,499,6],[542,4,550,4],[542,6,559,6],[551,2,559,2],[520,4,529,4],[530,2,539,2],[500,2,509,2],[500,3,519,3],[520,3,539,3],[380,3,399,3],[400,3,419,3],[380,6,419,6],[304,3,321,3],[322,3,331,3],[368,3,377,3],[286,4,294,4],[295,4,303,4],[380,1,419,1],[440,2,449,2],[440,3,459,3],[542,1,559,1],[542,2,550,2],[542,3,550,3],[380,2,389,2],[420,2,429,2],[460,1,499,1],[460,2,469,2],[420,1,459,1],[410,2,419,2],[43,6,44,6],[636,5,638,5],[43,5,44,5],[380,4,389,4],[390,4,399,4],[400,4,409,4],[230,4,234,4],[304,4,312,4],[313,4,321,4],[322,4,326,4],[327,4,331,4],[240,4,248,4],[249,4,257,4],[500,6,539,6],[510,4,519,4],[258,4,266,4],[47,4,48,4],[47,5,48,5],[47,6,48,6],[43,4,44,4],[578,6,595,6],[56,4,64,4],[373,4,377,4],[368,4,372,4],[240,1,285,1],[240,2,285,2],[240,3,257,3],[258,3,275,3],[286,2,331,2],[286,3,303,3],[47,3,48,3],[276,3,285,3],[286,1,331,1],[56,3,73,3],[30,1,31,1],[30,4,31,4],[30,5,31,5],[32,1,33,1],[36,0,49,0],[36,1,42,1],[36,2,41,2],[36,3,37,3],[36,4,37,4],[36,5,37,5],[43,1,49,1],[43,2,48,2],[45,3,46,3],[45,4,46,4],[43,3,44,3],[28,0,33,0],[28,1,29,1],[28,2,33,2],[52,0,53,0],[230,3,239,3],[47,10,48,10],[36,11,49,11],[36,12,49,12],[38,3,39,3],[38,4,39,4],[38,5,39,5],[38,10,39,10],[40,3,41,3],[40,4,41,4],[40,5,41,5],[40,6,41,6],[36,10,37,10],[40,10,41,10],[45,5,46,5],[45,6,46,6],[43,10,44,10],[45,10,46,10],[52,11,53,11],[52,12,53,12],[56,0,377,0],[56,1,101,1],[56,2,101,2],[56,11,377,11],[56,12,377,12],[359,4,367,4],[102,1,147,1],[102,2,147,2],[148,1,193,1],[148,2,193,2],[184,3,193,3],[184,4,188,4],[194,1,239,1],[194,2,239,2],[194,3,211,3],[194,4,202,4],[203,4,211,4],[212,3,229,3],[212,4,220,4],[221,4,229,4],[332,1,377,1],[332,2,377,2],[332,3,349,3],[332,4,340,4],[341,4,349,4],[350,3,367,3],[350,4,358,4],[56,13,377,13],[65,4,73,4],[74,3,91,3],[74,4,82,4],[83,4,91,4],[92,3,101,3],[92,4,96,4],[97,4,101,4],[143,4,147,4],[189,4,193,4],[102,3,119,3],[102,4,110,4],[111,4,119,4],[120,3,137,3],[120,4,128,4],[129,4,137,4],[138,3,147,3],[138,4,142,4],[148,3,165,3],[148,4,156,4],[157,4,165,4],[166,3,183,3],[166,4,174,4],[175,4,183,4],[596,1,613,1],[596,2,604,2],[596,3,604,3],[596,4,604,4],[596,6,613,6],[605,2,613,2],[605,3,613,3],[460,3,479,3],[578,4,586,4],[587,2,595,2],[587,3,595,3],[587,4,595,4],[560,3,568,3],[560,4,568,4],[560,6,577,6],[569,2,577,2],[569,3,577,3],[569,4,577,4],[500,4,509,4],[530,4,539,4],[578,1,595,1],[560,1,577,1],[500,1,539,1],[616,0,617,0],[616,12,617,12],[616,13,617,13],[618,0,620,0],[618,2,620,2],[618,3,620,3],[618,5,620,5],[618,6,620,6],[618,4,620,4],[380,0,539,0],[510,2,519,2],[520,2,529,2],[400,2,409,2],[390,2,399,2],[624,11,626,11],[624,12,626,12],[624,13,626,13],[627,0,628,0],[627,4,628,4],[627,11,628,11],[627,12,628,12],[627,13,628,13],[624,0,626,0],[624,1,626,1],[624,2,626,2],[624,3,626,3],[624,4,626,4],[624,6,626,6],[627,1,628,1],[627,2,628,2],[627,3,628,3],[622,0,623,0],[622,2,623,2],[639,0,644,0],[639,1,641,1],[639,2,644,2],[639,3,644,3],[639,4,644,4],[639,6,644,6],[639,12,644,12],[639,13,644,13],[629,1,632,1],[629,2,632,2],[629,3,632,3],[629,4,632,4],[629,12,632,12],[633,13,638,13],[629,0,632,0],[633,1,638,1],[642,1,644,1],[629,6,632,6],[654,3,655,3],[654,5,655,5],[658,6,664,6],[654,1,655,1],[654,2,655,2],[654,7,655,7],[658,2,664,2],[648,0,655,0],[648,1,649,1],[648,2,649,2],[648,3,649,3],[648,5,649,5],[650,1,651,1],[650,2,651,2],[650,3,651,3],[650,5,651,5],[652,1,653,1],[652,2,653,2],[652,3,653,3],[652,5,653,5],[672,12,678,12],[672,13,678,13],[648,12,655,12],[648,13,655,13],[658,13,664,13],[648,7,649,7],[648,11,655,11],[665,4,671,4],[665,5,671,5],[665,6,671,6],[665,12,671,12],[650,7,651,7],[658,11,685,11],[658,12,664,12],[679,13,685,13],[658,4,664,4],[658,5,664,5],[688,0,697,0],[688,1,689,1],[688,2,697,2],[688,4,697,4],[688,11,697,11],[688,12,697,12],[688,13,697,13],[665,2,671,2],[665,3,671,3],[679,2,685,2],[679,3,685,3],[679,4,685,4],[679,5,685,5],[690,1,691,1],[692,1,693,1],[694,1,695,1],[696,1,697,1],[658,0,685,0],[665,13,671,13],[672,2,678,2],[672,3,678,3],[672,4,678,4],[672,5,678,5],[672,6,678,6],[700,0,729,0],[700,1,701,1],[720,1,721,1],[679,6,685,6],[679,12,685,12],[700,5,709,5],[720,2,729,2],[720,3,729,3],[720,5,729,5],[722,1,723,1],[724,1,725,1],[726,1,727,1],[728,1,729,1],[700,11,729,11],[700,12,729,12],[702,1,703,1],[704,1,705,1],[706,1,707,1],[708,1,709,1],[710,1,711,1],[710,2,719,2],[710,3,719,3],[710,5,719,5],[700,2,709,2],[700,3,709,3],[712,1,713,1],[714,1,715,1],[716,1,717,1],[718,1,719,1],[732,11,741,11],[732,12,741,12],[737,2,741,2],[737,3,741,3],[737,4,741,4],[737,5,741,5],[737,6,741,6],[732,0,741,0],[732,2,736,2],[732,3,736,3],[732,4,736,4],[732,5,736,5],[732,6,736,6],[744,0,783,0],[744,1,751,1],[744,2,751,2],[744,3,747,3],[744,4,745,4],[776,4,777,4],[778,4,779,4],[780,3,783,3],[780,4,781,4],[782,4,783,4],[768,1,775,1],[768,2,775,2],[768,3,771,3],[768,4,769,4],[770,4,771,4],[772,3,775,3],[772,4,773,4],[774,4,775,4],[744,11,783,11],[746,4,747,4],[748,3,751,3],[748,4,749,4],[750,4,751,4],[760,1,767,1],[760,2,767,2],[760,3,763,3],[760,4,761,4],[762,4,763,4],[764,3,767,3],[764,4,765,4],[766,4,767,4],[752,1,759,1],[752,2,759,2],[752,3,755,3],[752,4,753,4],[754,4,755,4],[756,3,759,3],[756,4,757,4],[758,4,759,4],[776,1,783,1],[776,2,783,2],[776,3,779,3],[786,12,788,12],[791,0,796,0],[791,2,793,2],[791,3,793,3],[791,4,793,4],[791,11,796,11],[791,12,796,12],[786,0,788,0],[786,2,788,2],[786,3,788,3],[786,4,788,4],[786,5,788,5],[786,11,788,11],[786,6,788,6],[791,13,796,13],[794,2,796,2],[794,3,796,3],[794,4,796,4],[799,0,801,0],[799,2,801,2],[799,3,801,3],[799,4,801,4],[799,5,801,5],[799,11,801,11],[799,12,801,12],[804,0,827,0],[804,1,811,1],[804,2,807,2],[804,11,827,11],[804,12,827,12],[804,13,827,13],[808,2,811,2],[812,1,819,1],[812,2,815,2],[816,2,819,2],[820,1,827,1],[820,2,823,2],[824,2,827,2],[830,4,832,4],[830,5,832,5],[830,6,832,6],[830,11,832,11],[830,12,832,12],[835,0,837,0],[835,2,837,2],[835,3,837,3],[835,4,837,4],[835,5,837,5],[830,0,832,0],[830,2,832,2],[830,3,832,3],[835,6,837,6],[835,11,837,11],[835,12,837,12],[840,0,842,0],[840,2,842,2],[840,3,842,3],[840,4,842,4],[840,5,842,5],[840,6,842,6],[840,11,842,11],[840,12,842,12],[845,11,847,11],[845,12,847,12],[850,0,854,0],[850,2,854,2],[850,3,854,3],[850,4,854,4],[850,5,854,5],[850,6,854,6],[850,11,854,11],[850,12,854,12],[845,0,847,0],[845,2,847,2],[845,3,847,3],[845,4,847,4],[845,5,847,5],[845,6,847,6],[862,0,864,0],[862,2,864,2],[862,3,864,3],[862,4,864,4],[862,5,864,5],[862,6,864,6],[862,11,864,11],[862,12,864,12],[857,0,859,0],[857,2,859,2],[857,3,859,3],[857,4,859,4],[857,5,859,5],[857,6,859,6],[892,2,894,2],[892,3,894,3],[892,4,894,4],[892,5,894,5],[892,6,894,6],[892,11,894,11],[867,11,869,11],[867,12,869,12],[872,0,874,0],[872,2,874,2],[872,3,874,3],[872,4,874,4],[872,5,874,5],[872,6,874,6],[872,11,874,11],[872,12,874,12],[867,0,869,0],[867,2,869,2],[867,3,869,3],[867,4,869,4],[867,5,869,5],[867,6,869,6],[892,12,894,12],[882,6,884,6],[897,12,899,12],[902,0,904,0],[902,2,904,2],[902,3,904,3],[902,4,904,4],[902,5,904,5],[902,6,904,6],[902,11,904,11],[902,12,904,12],[897,0,899,0],[897,2,899,2],[897,3,899,3],[897,4,899,4],[897,5,899,5],[897,6,899,6],[897,11,899,11],[912,12,919,12],[916,2,919,2],[916,3,919,3],[916,4,919,4],[916,5,919,5],[916,6,919,6],[907,5,909,5],[907,6,909,6],[907,11,909,11],[907,12,909,12],[907,4,909,4],[912,11,919,11],[882,11,884,11],[882,12,884,12],[887,0,889,0],[887,2,889,2],[542,11,613,11],[542,12,613,12],[542,13,613,13],[633,3,638,3],[633,2,638,2],[633,4,638,4],[633,6,638,6],[633,12,638,12],[887,12,889,12],[887,11,889,11],[877,4,879,4],[877,5,879,5],[877,6,879,6],[877,11,879,11],[877,12,879,12],[882,0,884,0],[882,2,884,2],[882,3,884,3],[857,11,859,11],[857,12,859,12]]}
[]
[null,"mennyiség (m2)","papírminőség","méret","szín","kötészet",{"$nulls":4},"Nyomdai kivitelezés díja (nettó Ft/m2)","Nyomdai előkészítés díja (ppt vagy egyéb nem nyomdai kompatibilis grafikai anyag esetén) (nettó Ft)","Egyszerű gafikai tervezés, szerkesztés díja (pályázati arculat alapján 1 komplett tervvariáció) (nettó Ft)","Grafikai tervezés, szerkesztés díja (egyéb arculat alapján 3 komplett tervvariáció) (nettó Ft)"]
["Plakát (1)  ","1-től 5-ig","min. 170 g citylight ","A0","4+0","vágva",{"$nulls":4},4288,1500,4000,6000]
[null,null,null,"B1",{"$nulls":6},4288]
[null,null,null,"A1",{"$nulls":6},4288]
[null,null,null,"A2",{"$nulls":6},4288]
[null,"6-tól 10-ig","min. 170 g citylight ","A0","4+0","vágva",{"$nulls":4},4088]
[null,null,null,"B1",{"$nulls":6},4088]
[null,null,null,"A1",{"$nulls":6},4088]
[null,null,null,"A2",{"$nulls":6},4088]
[null,"10 fölött","min. 170 g citylight ","A0","4+0","vágva",{"$nulls":4},3888]
[null,null,null,"B1",{"$nulls":6},3888]
[null,null,null,"A1",{"$nulls":6},3888,null,null,null," "]
[null,null,null,"A2",{"$nulls":6},3888]
[null,"1-től 5-ig","canvas","A0","4+0","vágva",{"$nulls":4},7200]
[null,null,null,"B1",{"$nulls":6},7200]
[null,null,null,"A1",{"$nulls":6},7200]
[null,null,null,"A2",{"$nulls":6},7200]
[null,"6-tól 10-ig","canvas","A0","4+0","vágva",{"$nulls":4},7000]
[null,null,null,"B1",{"$nulls":6},7000]
[null,null,null,"A1",{"$nulls":6},7000]
[null,null,null,"A2",{"$nulls":6},7000]
[null,"10 fölött","canvas","A0","4+0","vágva",{"$nulls":4},6800]
[null,null,null,"B1",{"$nulls":6},6800]
[null,null,null,"A1",{"$nulls":6},6800]
[null,null,null,"A2",{"$nulls":6},6800]
[{"$nulls":10},{"$f":"SUM(K3:K26)","v":133056},{"$f":"SUM(L3)","v":1500},{"$f":"SUM(M3)","v":4000},{"$f":"SUM(N3)","v":6000}]
[null,"mennyiség (db)","papírminőség","méret","szín","kötészet",{"$nulls":4},"Nyomdai kivitelezés díja (nettó Ft/db)","Nyomdai előkészítés díja (ppt vagy egyéb nem nyomdai kompatibilis grafikai anyag esetén) (nettó Ft)","Egyszerű gafikai tervezés, szerkesztés díja (pályázati arculat alapján 1 komplett tervvariáció) (nettó Ft)","Grafikai tervezés, szerkesztés díja (egyéb arculat alapján 3 komplett tervvariáció) (nettó Ft)"]
["Plakát (2)","1-50","150 g fényes","A2","4+0","vágva",{"$nulls":4},1200,1500,4000,6000]
[null,null,null,"A3",{"$nulls":6},145]
[null,"100-300",null,"A2","4+0","vágva",{"$nulls":4},167]
[null,null,null,"A3",{"$nulls":6},95]
[null,"301-600",null,"A2","4+0","vágva",{"$nulls":4},72]
[null,null,null,"A3",{"$nulls":6},42]
[{"$nulls":10},{"$f":"SUM(K29:K34)","v":1721},{"$f":"SUM(L29)","v":1500},{"$f":"SUM(M29)","v":4000},{"$f":"SUM(N29)","v":6000}]
[null,"mennyiség (db)","papírminőség","méret","szín","kötészet",{"$nulls":4},"Nyomdai kivitelezés díja (nettó Ft/db)","Nyomdai előkészítés díja (ppt vagy egyéb nem nyomdai kompatibilis grafikai anyag esetén) (nettó Ft)","Egyszerű gafikai tervezés, szerkesztés díja (1 komplett tervvariáció) (nettó Ft)"]
["Meghívó","50-től 150-ig","300 g/m2 műnyomó","A5","4+4","biegelve, hajtva",{"$nulls":4},145,2000,4000]
[]
[null,null,null,"21*21 cm","4+4","biegelve, hajtva",{"$nulls":4},156]
[]
[null,null,null,"A/4","4+4","biegelve, hajtva, matt fólia 2 oldalon",{"$nulls":4},210]
[]
[null,null,"300 g galaxy metallics (vanilla)","A/4","4+4","biegelve, hajtva",null," ",null,null,224]
[null,"151-től 300-ig","300 g/m2 műnyomó","A5","4+4","biegelve, hajtva",{"$nulls":4},78]
[{"$nulls":14}," "]
[null,null,null,"21*21 cm","4+4","biegelve, hajtva",{"$nulls":4},98]
[]
[null,null,null,"A/4","4+4","biegelve, hajtva, matt fólia 2 oldalon",{"$nulls":4},151]
[]
[null,null,"300 g galaxy metallics (vanilla)","A/4","4+4","biegelve, hajtva",{"$nulls":4},162]
[{"$nulls":10},{"$f":"SUM(K37:K50)","v":1224},{"$f":"SUM(L37)","v":2000},{"$f":"SUM(M37)","v":4000}]
[null,"mennyiség (db)","papírminőség","méret","szín","konfekcionálás",{"$nulls":4},"Nyomdai kivitelezés díja (nettó Ft/db)","Nyomdai előkészítés díja (ppt vagy egyéb nem nyomdai kompatibilis grafikai anyag esetén) (nettó Ft)","Egyszerű gafikai tervezés, szerkesztés díja (1 komplett tervvariáció) (nettó Ft)"]
["Matrica","20-tól 250-ig","184 g/m2 papír öntapadó","90*40 mm","4+0","ritzelve A4 íven szállítva",{"$nulls":4},259,500,500]
[null,"251-től 500-ig","184 g/m2 papír öntapadó","90*40 mm","4+0","ritzelve A4 íven szállítva",{"$nulls":4},26]
[{"$nulls":10},{"$f":"SUM(K53:K54)","v":285},{"$f":"SUM(L53)","v":500},{"$f":"SUM(M53)","v":500}]
[null,"mennyiség (db)","papírminőség","méret","szín","terjedelem","kötészet",null," ",null,"Nyomdai kivitelezés díja (nettó Ft/össz. db)","Nyomdai előkészítés díja (nem nyomdai kompatibilis grafikai anyag esetén) (nettó Ft)","Egyszerű grafikai tervezés (borító + 1 oldalpár) pályázati arculat alapján 1 komplett tervvariáció díja (nettó Ft) ","Grafikai tervezés (borító + 1 oldalpár) egyéb arculat alapján 3 komplett tervvariáció díja (nettó Ft) ","Tördelés-szerkesztés egyszerű 2 elektronikus korrektúraforduló lebonyolításával (nettó Ft/össz. oldal)","Tördelés-szerkesztés összetett  2 elektronikus korrektúraforduló lebonyolításával (nettó Ft/össz. oldal)"]
["Kiadvány (1) ",100,"borító: 250 g műnyomó belív: 90 g műnyomó","A/5","bor: 4+4            belív: 1+1 fekete","4 old","hajtva",null,null,null,3550,4000,5000,15000,1600,1760.0000000000002]
[{"$nulls":5},"bor+8 old","irkafűzve",null,null,null,15700,null,null,null,4000,4400]
[{"$nulls":5},"bor+16 old","irkafűzve",null,null,null,17300,null,null,null,7200,7920.0000000000009]
[{"$nulls":5},"bor+24 old","irkafűzve",null,null,null,20300,null,null,null,10400,11440.000000000002]
[{"$nulls":5},"bor+32 old","irkafűzve",null,null,null,22200,null,null,null,13600,14960.000000000002]
[{"$nulls":5},"bor+36 old","irkafűzve",null,null,null,23300,null,null,null,15200,16720]
[{"$nulls":5},"bor+44 old","irkafűzve",null,null,null,25300,null,null,null,18400,20240]
[{"$nulls":5},"bor+52 old","irkafűzve",null,null,null,27300,null,null,null,21600,23760.000000000004]
[{"$nulls":5},"bor+60 old","irkafűzve",null,null,null,29100,null,null,null,24800,27280.000000000004]
[{"$nulls":4},"bor: 4+4            belív: 4+4","4 old","hajtva",null,null,null,6000,null,null,null,2000,2200]
[{"$nulls":5},"bor+8 old","irkafűzve",null,null,null,25200,null,null,null,5000,5500]
[{"$nulls":5},"bor+16 old","irkafűzve",null,null,null,35100,null,null,null,9000,9900]
[{"$nulls":5},"bor+24 old","irkafűzve",null,null,null,43900,null,null,null,13000,14300.000000000002]
[{"$nulls":5},"bor+32 old","irkafűzve",null,null,null,51300,null,null,null,17000,18700]
[{"$nulls":5},"bor+36 old","irkafűzve",null," ",null,53600,null,null,null,19000,20900]
[{"$nulls":5},"bor+44 old","irkafűzve",null,null,null,61000,null,null,null,23000,25300.000000000004]
[{"$nulls":5},"bor+52 old","irkafűzve",null,null,null,69000,null,null,null,27000,29700.000000000004]
[{"$nulls":5},"bor+60 old","irkafűzve",null,null,null,73000,null,null,null,31000,34100]
[null,null,null,"VB5 mérettől függetlenül","bor: 4+4            belív: 1+1 fekete","4 old","hajtva",null,null,null,4085,null,null,null,1600,1760.0000000000002]
[{"$nulls":5},"bor+8 old","irkafűzve",null,null,null,18145,null,null,null,4000,4400]
[{"$nulls":5},"bor+16 old","irkafűzve",null,null,null,20425,null,null,null,7200,7920.0000000000009]
[{"$nulls":5},"bor+24 old","irkafűzve",null,null,null,22325,null,null,null,10400,11440.000000000002]
[{"$nulls":5},"bor+32 old","irkafűzve",null,null,null,24130,null,null,null,13600,14960.000000000002]
[{"$nulls":5},"bor+36 old","irkafűzve",null,null,null,25270,null,null,null,15200,16720]
[{"$nulls":5},"bor+44 old","irkafűzve",null,null,null,28310,null,null,null,18400,20240]
[{"$nulls":5},"bor+52 old","irkafűzve",null,null,null,29735,null,null,null,21600,23760.000000000004]
[{"$nulls":5},"bor+60 old","irkafűzve",null,null,null,32490,null,null,null,24800,27280.000000000004]
[{"$nulls":4},"bor: 4+4            belív: 4+4","4 old","hajtva",null,null,null,11590,null,null,null,2000,2200]
[{"$nulls":5},"bor+8 old","irkafűzve",null,null,null,30400,null,null,null,5000,5500]
[{"$nulls":5},"bor+16 old","irkafűzve",null,null,null,41325,null,null,null,9000,9900]
[{"$nulls":5},"bor+24 old","irkafűzve",null,null,null,52250,null,null,null,13000,14300.000000000002]
[{"$nulls":5},"bor+32 old","irkafűzve",null,null,null,61750,null,null,null,17000,18700]
[{"$nulls":5},"bor+36 old","irkafűzve",null,null,null,68400,null,null,null,19000,20900]
[{"$nulls":5},"bor+44 old","irkafűzve",null,null,null,79800,null,null,null,23000,25300.000000000004]
[{"$nulls":5},"bor+52 old","irkafűzve",null,null,null,90250,null,null,null,27000,29700.000000000004]
[{"$nulls":5},"bor+60 old","irkafűzve",null,null,null,100700,null,null,null,31000,34100]
[null,null,null,"A/4","bor: 4+4            belív: 1+1 fekete","4 old","hajtva",null,null,null,4750,null,null,null,1600,1760.0000000000002]
[{"$nulls":5},"bor+8 old","irkafűzve",null,null,null,19380,null,null,null,4000,4400]
[{"$nulls":5},"bor+16 old","irkafűzve",null,null,null,22800,null,null,null,7200,7920.0000000000009]
[{"$nulls":5},"bor+32 old","irkafűzve",null,null,null,28880,null,null,null,13600,14960.000000000002]
[{"$nulls":5},"bor+44 old","irkafűzve",null,null,null,33250,null,null,null,18400,20240]
[{"$nulls":4},"bor: 4+4            belív: 4+4","4 old","hajtva",null,null,null,12350,null,null,null,2000,2200]
[{"$nulls":5},"bor+8 old","irkafűzve",null,null,null,33630,null,null,null,5000,5500]
[{"$nulls":5},"bor+16 old","irkafűzve",null,null,null,48450,null,null,null,9000,9900]
[{"$nulls":5},"bor+32 old","irkafűzve",null,null,null,91770,null,null,null,17000,18700]
[{"$nulls":5},"bor+44 old","irkafűzve",null,null,null,101175,null,null,null,23000,25300.000000000004]
[null,200,"borító: 250 g műnyomó belív: 90 g műnyomó","A/5","bor: 4+4            belív: 1+1 fekete","4 old","hajtva",null,null,null,4400,null,null,null,1600,1760.0000000000002]
[{"$nulls":5},"bor+8 old","irkafűzve",null,null,null,20000,null,null,null,4000,4400]
[{"$nulls":5},"bor+16 old","irkafűzve",null,null,null,24600,null,null,null,7200,7920.0000000000009]
[{"$nulls":5},"bor+24 old","irkafűzve",null,null,null,28600,null,null,null,10400,11440.000000000002]
[{"$nulls":5},"bor+32 old","irkafűzve",null,null,null,32000,null,null,null,13600,14960.000000000002]
[{"$nulls":5},"bor+36 old","irkafűzve",null,null," ",33600,null,null,null,15200,16720]
[{"$nulls":5},"bor+44 old","irkafűzve",null,null,null,36400,null,null,null,18400,20240]
[{"$nulls":5},"bor+52 old","irkafűzve",null,null,null,38800,null,null,null,21600,23760.000000000004]
[{"$nulls":5},"bor+60 old","irkafűzve",null,null,null,41200,null,null,null,24800,27280.000000000004]
[{"$nulls":4},"bor: 4+4            belív: 4+4","4 old","hajtva",null,null,null,9800,null,null,null,2000,2200]
[{"$nulls":5},"bor+8 old","irkafűzve",null,null,null,37000,null,null,null,5000,5500]
[{"$nulls":5},"bor+16 old","irkafűzve",null,null,null,56200,null,null,null,9000,9900]
[{"$nulls":5},"bor+24 old","irkafűzve",null,null,null,64000,null,null,null,13000,14300.000000000002]
[{"$nulls":5},"bor+32 old","irkafűzve",null,null,null,78000,null,null,null,17000,18700]
[{"$nulls":5},"bor+36 old","irkafűzve",null,null,null,86000,null,null,null,19000,20900]
[{"$nulls":5},"bor+44 old","irkafűzve",null," ",null,108000,null,null,null,23000,25300.000000000004]
[{"$nulls":5},"bor+52 old","irkafűzve",null,null,null,124000,null,null,null,27000,29700.000000000004]
[{"$nulls":5},"bor+60 old","irkafűzve",null,null,null,139000,null,null,null,31000,34100]
[null,null,null,"VB5 mérettől függetlenül","bor: 4+4            belív: 1+1 fekete","4 old","hajtva",null,null,null,6080,null,null,null,1600,1760.0000000000002]
[{"$nulls":5},"bor+8 old","irkafűzve",null,null,null,29640,null,null,null,4000,4400]
[{"$nulls":5},"bor+16 old","irkafűzve",null,null,null,34010,null,null,null,7200,7920.0000000000009]
[{"$nulls":5},"bor+24 old","irkafűzve",null,null,null,38950,null,null,null,10400,11440.000000000002]
[{"$nulls":5},"bor+32 old","irkafűzve",null,null,null,42940,null,null,null,13600,14960.000000000002]
[{"$nulls":5},"bor+36 old","irkafűzve",null,null,null,44840,null,null,null,15200,16720]
[{"$nulls":5},"bor+44 old","irkafűzve",null,null,null,48070,null,null,null,18400,20240]
[{"$nulls":5},"bor+52 old","irkafűzve",null,null,null,51110,null,null,null,21600,23760.000000000004]
[{"$nulls":5},"bor+60 old","irkafűzve",null,null,null,55100,null,null,null,24800,27280.000000000004]
[{"$nulls":4},"bor: 4+4            belív: 4+4","4 old","hajtva",null,null,null,16530,null,null,null,2000,2200]
[{"$nulls":5},"bor+8 old","irkafűzve",null,null,null,44650,null,null,null,5000,5500]
[{"$nulls":5},"bor+16 old","irkafűzve",null,null,null,57380,null,null,null,9000,9900]
[{"$nulls":5},"bor+24 old","irkafűzve",null,null,null,75430,null,null,null,13000,14300.000000000002]
[{"$nulls":5},"bor+32 old","irkafűzve",null,null,null,86070,null,null,null,17000,18700]
[{"$nulls":5},"bor+36 old","irkafűzve",null,null,null,103360,null,null,null,19000,20900]
[{"$nulls":5},"bor+44 old","irkafűzve",null,null,null,116090,null,null,null,23000,25300.000000000004]
[{"$nulls":5},"bor+52 old","irkafűzve",null,null,null,133570,null,null,null,27000,29700.000000000004]
[{"$nulls":5},"bor+60 old","irkafűzve",null,null,null,145920,null,null,null,31000,34100]
[null,null,null,"A/4","bor: 4+4            belív: 1+1 fekete","4 old","hajtva",null,null,null,7220,null,null,null,1600,1760.0000000000002]
[{"$nulls":5},"bor+8 old","irkafűzve",null,null,null,30400,null,null,null,4000,4400]
[{"$nulls":5},"bor+16 old","irkafűzve",null,null,null,37050,null,null,null,7200,7920.0000000000009]
[{"$nulls":5},"bor+32 old","irkafűzve",null,null,null,48260,null,null,null,13600,14960.000000000002]
[{"$nulls":5},"bor+44 old","irkafűzve",null,null,null,54150,null,null,null,18400,20240]
[{"$nulls":4},"bor: 4+4            belív: 4+4","4 old","hajtva",null,null,null,17480,null,null,null,2000,2200]
[{"$nulls":5},"bor+8 old","irkafűzve",null,null,null,54720,null,null,null,5000,5500]
[{"$nulls":5},"bor+16 old","irkafűzve",null,null,null,84550,null,null,null,9000,9900]
[{"$nulls":5},"bor+32 old","irkafűzve",null,null,null,14345,null,null,null,17000,18700]
[{"$nulls":5},"bor+44 old","irkafűzve",null,null,null,190000,null,null,null,23000,25300.000000000004]
[null,300,"borító: 250 g műnyomó belív: 90 g műnyomó","A/5","bor: 4+4            belív: 1+1 fekete","4 old","hajtva",null,null,null,5310,null,null,null,1600,1760.0000000000002]
[{"$nulls":5},"bor+8 old","irkafűzve",null,null,null,26700,null,null,null,4000,4400]
[{"$nulls":5},"bor+16 old","irkafűzve",null,null,null,31200,null,null,null,7200,7920.0000000000009]
[{"$nulls":5},"bor+24 old","irkafűzve",null,null,null,36600,null,null,null,10400,11440.000000000002]
[{"$nulls":5},"bor+32 old","irkafűzve",null,null,null,40500,null,null,null,13600,14960.000000000002]
[{"$nulls":5},"bor+36 old","irkafűzve",null,null,null,42600,null,null,null,15200,16720]
[{"$nulls":5},"bor+44 old","irkafűzve",null,null,null,45900,null,null,null,18400,20240]
[{"$nulls":5},"bor+52 old","irkafűzve",null,null,null,48600,null,null,null,21600,23760.000000000004]
[{"$nulls":5},"bor+60 old","irkafűzve",null,null,null,51000,null,null,null,24800,27280.000000000004]
[{"$nulls":4},"bor: 4+4            belív: 4+4","4 old","hajtva","*",null,null,13200,null,null,null,2000,2200]
[{"$nulls":5},"bor+8 old","irkafűzve",null,null,null,48900,null,null,null,5000,5500]
[{"$nulls":5},"bor+16 old","irkafűzve",null,null,null,69000,null,null,null,9000,9900]
[{"$nulls":5},"bor+24 old","irkafűzve",null,null,null,90000,null,null,null,13000,14300.000000000002]
[{"$nulls":5},"bor+32 old","irkafűzve",null,null,null,111000,null,null,null,17000,18700]
[{"$nulls":5},"bor+36 old","irkafűzve",null,null,null,120000,null,null,null,19000,20900]
[{"$nulls":5},"bor+44 old","irkafűzve",null,null,null,153000,null,null,null,23000,25300.000000000004]
[{"$nulls":5},"bor+52 old","irkafűzve",null,null,null,174000,null,null,null,27000,29700.000000000004]
[{"$nulls":5},"bor+60 old","irkafűzve",null,null,null,198000,null,null,null,31000,34100]
[null,null,null,"VB5 mérettől függetlenül","bor: 4+4            belív: 1+1 fekete","4 old","hajtva",null,null,null,8265,null,null,null,1600,1760.0000000000002]
[{"$nulls":5},"bor+8 old","irkafűzve",null,null,null,30780,null,null,null,4000,4400]
[{"$nulls":5},"bor+16 old","irkafűzve",null,null,null,37335,null,null,null,7200,7920.0000000000009]
[{"$nulls":5},"bor+24 old","irkafűzve",null,null,null,44460,null,null,null,10400,11440.000000000002]
[{"$nulls":5},"bor+32 old","irkafűzve",null,null,null,49875,null,null,null,13600,14960.000000000002]
[{"$nulls":5},"bor+36 old","irkafűzve",null,null,null,52155,null,null,null,15200,16720]
[{"$nulls":5},"bor+44 old","irkafűzve","*",null,null,57000,null,null,null,18400,20240]
[{"$nulls":5},"bor+52 old","irkafűzve",null,null,null,61275,null,null,null,21600,23760.000000000004]
[{"$nulls":5},"bor+60 old","irkafűzve",null,null,null,65550,null,null,null,24800,27280.000000000004]
[{"$nulls":4},"bor: 4+4            belív: 4+4","4 old","hajtva",null,null,null,16815,null,null,null,2000,2200]
[{"$nulls":5},"bor+8 old","irkafűzve",null,null,null,42465,null,null,null,5000,5500]
[{"$nulls":5},"bor+16 old","irkafűzve",null,null,null,57000,null,null,null,9000,9900]
[{"$nulls":5},"bor+24 old","irkafűzve",null,null,null,75525,null,null,null,13000,14300.000000000002]
[{"$nulls":5},"bor+32 old","irkafűzve",null,null,null,88350,null,null,null,17000,18700]
[{"$nulls":5},"bor+36 old","irkafűzve",null,null,null,103170,null,null,null,19000,20900]
[{"$nulls":5},"bor+44 old","irkafűzve",null,null,null,121695,null,null,null,23000,25300.000000000004]
[{"$nulls":5},"bor+52 old","irkafűzve",null,null,null,134520,null,null,null,27000,29700.000000000004]
[{"$nulls":5},"bor+60 old","irkafűzve",null,null,null,153045,null,null,null,31000,34100]
[null,null,null,"A/4","bor: 4+4            belív: 1+1 fekete","4 old","hajtva",null,null,null,8835,null,null,null,1600,1760.0000000000002]
[{"$nulls":5},"bor+8 old","irkafűzve",null,null,null,41610,null,null,null,4000,4400]
[{"$nulls":5},"bor+16 old","irkafűzve",null,null,null,49020,null,null,null,7200,7920.0000000000009]
[{"$nulls":5},"bor+32 old","irkafűzve",null,null,null,62700,null,null,null,13600,14960.000000000002]
[{"$nulls":5},"bor+44 old","irkafűzve",null,null,null,73815,null,null,null,18400,20240]
[{"$nulls":4},"bor: 4+4            belív: 4+4","4 old","hajtva",null,null,null,23370,null,null,null,2000,2200]
[{"$nulls":5},"bor+8 old","irkafűzve",null,null,null,64410,null,null,null,5000,5500]
[{"$nulls":5},"bor+16 old","irkafűzve",null,null,null,94050,null,null,null,9000,9900]
[{"$nulls":5},"bor+32 old","irkafűzve",null,null,null,154470,null,null,null,17000,18700]
[{"$nulls":5},"bor+44 old","irkafűzve",null,null,null,202920,null,null,null,23000,25300.000000000004]
[null,400,"borító: 250 g műnyomó belív: 90 g műnyomó","A/5","bor: 4+4            belív: 1+1 fekete","4 old","hajtva",null,null,null,6200,null,null,null,1600,1760.0000000000002]
[{"$nulls":5},"bor+8 old","irkafűzve",null,null,null,33600,null,null,null,4000,4400]
[{"$nulls":5},"bor+16 old","irkafűzve",null,null,null,37600,null,null,null,7200,7920.0000000000009]
[{"$nulls":5},"bor+24 old","irkafűzve",null,null,null,42800,null,null,null,10400,11440.000000000002]
[{"$nulls":5},"bor+32 old","irkafűzve",null,null,null,47600,null,null,null,13600,14960.000000000002]
[{"$nulls":5},"bor+36 old","irkafűzve",null,null,null,49600,null,null,null,15200,16720]
[{"$nulls":5},"bor+44 old","irkafűzve",null,null,null,52800,null,null,null,18400,20240]
[{"$nulls":5},"bor+52 old","irkafűzve",null,null,null,56800,null,null,null,21600,23760.000000000004]
[{"$nulls":5},"bor+60 old","irkafűzve",null,null,null,62000,null,null,null,24800,27280.000000000004]
[{"$nulls":4},"bor: 4+4            belív: 4+4","4 old","hajtva",null,null,null,16000,null,null,null,2000,2200]
[{"$nulls":5},"bor+8 old","irkafűzve",null,null,null,62000,null,null,null,5000,5500]
[{"$nulls":5},"bor+16 old","irkafűzve",null,null,null,92000,null,null,null,9000,9900]
[{"$nulls":5},"bor+24 old","irkafűzve",null,null,null,116800,null,null,null,13000,14300.000000000002]
[{"$nulls":5},"bor+32 old","irkafűzve",null,null,null,147600,null,null,null,17000,18700]
[{"$nulls":5},"bor+36 old","irkafűzve",null,null,null,163200,null,null,null,19000,20900]
[{"$nulls":5},"bor+44 old","irkafűzve",null,null,null,191200,null,null,null,23000,25300.000000000004]
[{"$nulls":5},"bor+52 old","irkafűzve",null,null,null,220000,null,null,null,27000,29700.000000000004]
[{"$nulls":5},"bor+60 old","irkafűzve",null,null,null,248400,null,null,null,31000,34100]
[null,null,null,"VB5 mérettől függetlenül","bor: 4+4            belív: 1+1 fekete","4 old","hajtva",null,null,null,10260,null,null,null,1600,1760.0000000000002]
[{"$nulls":5},"bor+8 old","irkafűzve",null,null,null,35720,null,null,null,4000,4400]
[{"$nulls":5},"bor+16 old","irkafűzve",null,null,null,40280,null,null,null,7200,7920.0000000000009]
[{"$nulls":5},"bor+24 old","irkafűzve",null,null,null,45980,null,null,null,10400,11440.000000000002]
[{"$nulls":5},"bor+32 old","irkafűzve",null,null,null,50920,null,null,null,13600,14960.000000000002]
[{"$nulls":5},"bor+36 old","irkafűzve",null," ",null,53580,null,null,null,15200,16720]
[{"$nulls":5},"bor+44 old","irkafűzve",null,null,null,57380,null,null,null,18400,20240]
[{"$nulls":5},"bor+52 old","irkafűzve",null,null,null,61560,null,null,null,21600,23760.000000000004]
[{"$nulls":5},"bor+60 old","irkafűzve",null,null,null,68780,null,null,null,24800,27280.000000000004]
[{"$nulls":4},"bor: 4+4            belív: 4+4","4 old","hajtva",null,null,null,17100,null,null,null,2000,2200]
[{"$nulls":5},"bor+8 old","irkafűzve",null,null,null,42560,null,null,null,5000,5500]
[{"$nulls":5},"bor+16 old","irkafűzve",null,null,null,59280,null,null,null,9000,9900]
[{"$nulls":5},"bor+24 old","irkafűzve",null,null,null,78280,null,null,null,13000,14300.000000000002]
[{"$nulls":5},"bor+32 old","irkafűzve",null,null,null,91200,null,null,null,17000,18700]
[{"$nulls":5},"bor+36 old","irkafűzve",null,null,null,106780,null,null,null,19000,20900]
[{"$nulls":5},"bor+44 old","irkafűzve",null,null,null,124260,null,null,null,23000,25300.000000000004]
[{"$nulls":5},"bor+52 old","irkafűzve",null,null,null,139080,null,null,null,27000,29700.000000000004]
[{"$nulls":5},"bor+60 old","irkafűzve",null,null,null,156560,null,null,null,31000,34100]
[null,null,null,"A/4","bor: 4+4            belív: 1+1 fekete","4 old","hajtva",null,null,null,10260,null,null,null,1600,1760.0000000000002]
[{"$nulls":5},"bor+8 old","irkafűzve",null,null,null,49020,null,null,null,4000,4400]
[{"$nulls":5},"bor+16 old","irkafűzve",null,null,null,59280,null,null,null,7200,7920.0000000000009]
[{"$nulls":5},"bor+32 old","irkafűzve",null,null,null,75620,null,null,null,13600,14960.000000000002]
[{"$nulls":5},"bor+44 old","irkafűzve",null,null,null,89300,null,null,null,18400,20240]
[{"$nulls":4},"bor: 4+4            belív: 4+4","4 old","hajtva",null,null,null,25840,null,null,null,2000,2200]
[{"$nulls":5},"bor+8 old","irkafűzve",null,null,null,69920,null,null,null,5000,5500]
[{"$nulls":5},"bor+16 old","irkafűzve",null,null,null,96520,null,null,null,9000,9900]
[{"$nulls":5},"bor+32 old","irkafűzve",null,null,null,157700,null,null,null,17000,18700]
[{"$nulls":5},"bor+44 old","irkafűzve",null,null,null,211660,null,null,null,23000,25300.000000000004]
[null,500,"borító: 250 g műnyomó belív: 90 g műnyomó","A/5","bor: 4+4            belív: 1+1 fekete","4 old","hajtva",null,null,null,6850,null,null,null,1600,1760.0000000000002]
[{"$nulls":5},"bor+8 old","irkafűzve",null,null,null,38500,null,null,null,4000,4400]
[{"$nulls":5},"bor+16 old","irkafűzve",null,null,null,44500,null,null,null,7200,7920.0000000000009]
[{"$nulls":5},"bor+24 old","irkafűzve",null,null,null,50000,null,null,null,10400,11440.000000000002]
[{"$nulls":5},"bor+32 old","irkafűzve",null,null,null,54500,null,null,null,13600,14960.000000000002]
[{"$nulls":5},"bor+36 old","irkafűzve",null,null,null,56500,null,null,null,15200,16720]
[{"$nulls":5},"bor+44 old","irkafűzve",null,null,null,62000,null,null,null,18400,20240]
[{"$nulls":5},"bor+52 old","irkafűzve",null,null,null,68500,null,null,null,21600,23760.000000000004]
[{"$nulls":5},"bor+60 old","irkafűzve",null,null,null,74500,null,null,null,24800,27280.000000000004]
[{"$nulls":4},"bor: 4+4            belív: 4+4","4 old","hajtva",null,null,null,17350,null,null,null,2000,2200]
[{"$nulls":5},"bor+8 old","irkafűzve",null,null,null,54500,null,null,null,5000,5500]
[{"$nulls":5},"bor+16 old","irkafűzve",null,null,null,68000,null,null,null,9000,9900]
[{"$nulls":5},"bor+24 old","irkafűzve",null,null,null,86500,null,null,null,13000,14300.000000000002]
[{"$nulls":5},"bor+32 old","irkafűzve",null,null,null,100000,null,null,null,17000,18700]
[{"$nulls":5},"bor+36 old","irkafűzve",null,null,null,118600,null,null,null,19000,20900]
[{"$nulls":5},"bor+44 old","irkafűzve",null,null,null,138000,null,null,null,23000,25300.000000000004]
[{"$nulls":5},"bor+52 old","irkafűzve",null,null,null,151000,null,null,null,27000,29700.000000000004]
[{"$nulls":5},"bor+60 old","irkafűzve",null,null,null,167000,null,null,null,31000,34100]
[null,null,null,"VB5 mérettől függetlenül","bor: 4+4            belív: 1+1 fekete","4 old","hajtva",null,null,null,11500,null,null,null,1600,1760.0000000000002]
[{"$nulls":5},"bor+8 old","irkafűzve",null,null,null,35420,null,null,null,4000,4400]
[{"$nulls":5},"bor+16 old","irkafűzve",null,null,null,42780,null,null,null,7200,7920.0000000000009]
[{"$nulls":5},"bor+24 old","irkafűzve",null," ",null,48760,null,null,null,10400,11440.000000000002]
[{"$nulls":5},"bor+32 old","irkafűzve",null,null,null,54740,null,null,null,13600,14960.000000000002]
[{"$nulls":5},"bor+36 old","irkafűzve",null,null,null,57040,null,null,null,15200,16720]
[{"$nulls":5},"bor+44 old","irkafűzve",null,null,null,62560,null,null,null,18400,20240]
[{"$nulls":5},"bor+52 old","irkafűzve",null,null,null,69000,null,null,null,21600,23760.000000000004]
[{"$nulls":5},"bor+60 old","irkafűzve",null,null,null,74980,null,null,null,24800,27280.000000000004]
[{"$nulls":4},"bor: 4+4            belív: 4+4","4 old","hajtva",null,null,null,16698,null,null,null,2000,2200]
[{"$nulls":5},"bor+8 old","irkafűzve",null,null,null,42780,null,null,null,5000,5500]
[{"$nulls":5},"bor+16 old","irkafűzve",null,null,null,59340,null,null,null,9000,9900]
[{"$nulls":5},"bor+24 old","irkafűzve",null,null,null,78200,null,null,null,13000,14300.000000000002]
[{"$nulls":5},"bor+32 old","irkafűzve",null,null,null,92000,null,null,null,17000,18700]
[{"$nulls":5},"bor+36 old","irkafűzve",null,null,null,106720,null,null,null,19000,20900]
[{"$nulls":5},"bor+44 old","irkafűzve",null,null,null,124200,null,null,null,23000,25300.000000000004]
[{"$nulls":5},"bor+52 old","irkafűzve",null,null,null,139380,null,null,null,27000,29700.000000000004]
[{"$nulls":5},"bor+60 old","irkafűzve",null,null,null,156400,null,null,null,31000,34100]
[null,null,null,"A/4","bor: 4+4            belív: 1+1 fekete","4 old","hajtva",null,null,null,11500,null,null,null,1600,1760.0000000000002]
[{"$nulls":5},"bor+8 old","irkafűzve",null,null,null,51980,null,null,null,4000,4400]
[{"$nulls":5},"bor+16 old","irkafűzve",null,null,null,62560,null,null,null,7200,7920.0000000000009]
[{"$nulls":5},"bor+32 old","irkafűzve",null,null,null,83720,null,null,null,13600,14960.000000000002]
[{"$nulls":5},"bor+44 old","irkafűzve",null,null,null,100740,null,null,null,18400,20240]
[{"$nulls":4},"bor: 4+4            belív: 4+4","4 old","hajtva",null,null,null,25300,null,null,null,2000,2200]
[{"$nulls":5},"bor+8 old","irkafűzve",null,null,null,65780,null,null,null,5000,5500]
[{"$nulls":5},"bor+16 old","irkafűzve",null,null,null,96140,null,null,null,9000,9900]
[{"$nulls":5},"bor+32 old","irkafűzve",null,null,null,161000,null,null,null,17000,18700]
[{"$nulls":5},"bor+44 old","irkafűzve",null,null,null,210680,null,null,null,23000,25300.000000000004]
[null,1000,"borító: 250 g műnyomó belív: 90 g műnyomó","A/5","bor: 4+4            belív: 1+1 fekete","4 old","hajtva",null,null,null,10400,null,null,null,1600,1760.0000000000002]
[{"$nulls":5},"bor+8 old","irkafűzve",null,null,null,54000,null,null,null,4000,4400]
[{"$nulls":5},"bor+16 old","irkafűzve",null,null,null,65000,null,null,null,7200,7920.0000000000009]
[{"$nulls":5},"bor+24 old","irkafűzve",null,null,null,84000,null,null,null,10400,11440.000000000002]
[{"$nulls":5},"bor+32 old","irkafűzve",null,null,null,91000,null,null,null,13600,14960.000000000002]
[{"$nulls":5},"bor+36 old","irkafűzve",null,null,null,99000,null,null,null,15200,16720]
[{"$nulls":5},"bor+44 old","irkafűzve",null,null,null,109000,null,null,null,18400,20240]
[{"$nulls":5},"bor+52 old","irkafűzve",null,null,null,121000,null,null,null,21600,23760.000000000004]
[{"$nulls":5},"bor+60 old","irkafűzve",null,null,null,130000,null,null,null,24800,27280.000000000004]
[{"$nulls":4},"bor: 4+4            belív: 4+4","4 old","hajtva",null,null,null,18900,null,null,null,2000,2200]
[{"$nulls":5},"bor+8 old","irkafűzve",null,null,null,63500,null,null,null,5000,5500]
[{"$nulls":5},"bor+16 old","irkafűzve",null,null,null,80000,null,null,null,9000,9900]
[{"$nulls":5},"bor+24 old","irkafűzve",null,null,null,102000,null,null,null,13000,14300.000000000002]
[{"$nulls":5},"bor+32 old","irkafűzve",null,null,null,119000,null,null,null,17000,18700]
[{"$nulls":5},"bor+36 old","irkafűzve",null,null,null,140000,null,null,null,19000,20900]
[{"$nulls":5},"bor+44 old","irkafűzve",null,null,null,162600,null,null,null,23000,25300.000000000004]
[{"$nulls":5},"bor+52 old","irkafűzve",null,null,null,180000,null,null,null,27000,29700.000000000004]
[{"$nulls":5},"bor+60 old","irkafűzve",null,null,null,201300,null,null,null,31000,34100]
[null,null,null,"VB5 mérettől függetlenül","bor: 4+4            belív: 1+1 fekete","4 old","hajtva",null,null,null,12880,null,null,null,1600,1760.0000000000002]
[{"$nulls":5},"bor+8 old","irkafűzve",null,null,null,47840,null,null,null,4000,4400]
[{"$nulls":5},"bor+16 old","irkafűzve",null,null,null,59800,null,null,null,7200,7920.0000000000009]
[{"$nulls":5},"bor+24 old","irkafűzve",null,null,null,71760,null,null,null,10400,11440.000000000002]
[{"$nulls":5},"bor+32 old","irkafűzve",null,null,null,84640,null,null,null,13600,14960.000000000002]
[{"$nulls":5},"bor+36 old","irkafűzve",null,null,null,91080,null,null,null,15200,16720]
[{"$nulls":5},"bor+44 old","irkafűzve"," ",null,null,103040,null,null,null,18400,20240]
[{"$nulls":5},"bor+52 old","irkafűzve",null,null,null,115920,null,null,null,21600,23760.000000000004]
[{"$nulls":5},"bor+60 old","irkafűzve",null,null,null,127880,null,null,null,24800,27280.000000000004]
[{"$nulls":4},"bor: 4+4            belív: 4+4","4 old","hajtva",null,null,null,17848,null,null,null,2000,2200]
[{"$nulls":5},"bor+8 old","irkafűzve",null,null,null,51520,null,null,null,5000,5500]
[{"$nulls":5},"bor+16 old","irkafűzve",null,null,null,71760,null,null,null,9000,9900]
[{"$nulls":5},"bor+24 old","irkafűzve",null,null,null,93840,null,null,null,13000,14300.000000000002]
[{"$nulls":5},"bor+32 old","irkafűzve",null,null,null,114080,null,null,null,17000,18700]
[{"$nulls":5},"bor+36 old","irkafűzve",null,null,null,131560,null,null,null,19000,20900]
[{"$nulls":5},"bor+44 old","irkafűzve",null,null,null,153640,null,null,null,23000,25300.000000000004]
[{"$nulls":5},"bor+52 old","irkafűzve",null,null,null,172960,null,null,null,27000,29700.000000000004]
[{"$nulls":5},"bor+60 old","irkafűzve",null,null,null,191360,null,null,null,31000,34100]
[null,null,null,"A/4","bor: 4+4            belív: 1+1 fekete","4 old","hajtva",null,null,null,16560,null,null,null,1600,1760.0000000000002]
[{"$nulls":5},"bor+8 old","irkafűzve",null,null,null,69276,null,null,null,4000,4400]
[{"$nulls":5},"bor+16 old","irkafűzve",null,null,null,93196,null,null,null,7200,7920.0000000000009]
[{"$nulls":5},"bor+32 old","irkafűzve",null,null,null,130272,null,null,null,13600,14960.000000000002]
[{"$nulls":5},"bor+44 old","irkafűzve",null,null,null,163760,null,null,null,18400,20240]
[{"$nulls":4},"bor: 4+4            belív: 4+4","4 old","hajtva",null,null,null,27600,null,null,null,2000,2200]
[{"$nulls":5},"bor+8 old","irkafűzve",null,null,null,78200,null,null,null,5000,5500]
[{"$nulls":5},"bor+16 old","irkafűzve",null,null,null,115000,null,null,null,9000,9900]
[{"$nulls":5},"bor+32 old","irkafűzve",null,null,null,188600,null,null,null,17000,18700]
[{"$nulls":5},"bor+44 old","irkafűzve",null,null,null,252632,null,null,null,23000,25300.000000000004]
[null,2000,"borító: 250 g műnyomó belív: 90 g műnyomó","A/5","bor: 4+4            belív: 1+1 fekete","4 old","hajtva",null,null,null,16400,null,null,null,1600,1760.0000000000002]
[{"$nulls":5},"bor+8 old","irkafűzve",null,null,null,78000,null,null,null,4000,4400]
[{"$nulls":5},"bor+16 old","irkafűzve"," ",null,null,98000,null,null,null,7200,7920.0000000000009]
[{"$nulls":5},"bor+24 old","irkafűzve",null,null,null,118000,null,null,null,10400,11440.000000000002]
[{"$nulls":5},"bor+32 old","irkafűzve",null,null,null,132000,null,null,null,13600,14960.000000000002]
[{"$nulls":5},"bor+36 old","irkafűzve",null,null,null,138000,null,null,null,15200,16720]
[{"$nulls":5},"bor+44 old","irkafűzve",null,null,null,162000,null,null,null,18400,20240]
[{"$nulls":5},"bor+52 old","irkafűzve",null,null,null,180000,null,null,null,21600,23760.000000000004]
[{"$nulls":5},"bor+60 old","irkafűzve",null,null,null,200000,null,null,null,24800,27280.000000000004]
[{"$nulls":4},"bor: 4+4            belív: 4+4","4 old","hajtva",null,null,null,24200,null,null,null,2000,2200]
[{"$nulls":5},"bor+8 old","irkafűzve",null,null,null,84000,null,null,null,5000,5500]
[{"$nulls":5},"bor+16 old","irkafűzve",null,null,null,108400,null,null,null,9000,9900]
[{"$nulls":5},"bor+24 old","irkafűzve",null,null,null,138000,null,null,null,13000,14300.000000000002]
[{"$nulls":5},"bor+32 old","irkafűzve",null,null,null,163000,null,null,null,17000,18700]
[{"$nulls":5},"bor+36 old","irkafűzve",null,null,null,185600,null,null,null,19000,20900]
[{"$nulls":5},"bor+44 old","irkafűzve",null,null,null,216000,null,null,null,23000,25300.000000000004]
[{"$nulls":5},"bor+52 old","irkafűzve",null,null,null,245000,null,null,null,27000,29700.000000000004]
[{"$nulls":5},"bor+60 old","irkafűzve",null,null,null,272400,null,null,null,31000,34100]
[null,null,null,"VB5 mérettől függetlenül","bor: 4+4            belív: 1+1 fekete","4 old","hajtva",null,null,null,18400,null,null,null,1600,1760.0000000000002]
[{"$nulls":5},"bor+8 old","irkafűzve",null,null,null,71760,null,null,null,4000,4400]
[{"$nulls":5},"bor+16 old","irkafűzve",null,null,null,92000,null,null,null,7200,7920.0000000000009]
[{"$nulls":5},"bor+24 old","irkafűzve"," ",null,null,112240,null,null,null,10400,11440.000000000002]
[{"$nulls":5},"bor+32 old","irkafűzve",null,null,null,126960,null,null,null,13600,14960.000000000002]
[{"$nulls":5},"bor+36 old","irkafűzve",null,null,null,141680,null,null,null,15200,16720]
[{"$nulls":5},"bor+44 old","irkafűzve",null,null,null,161920,null,null,null,18400,20240]
[{"$nulls":5},"bor+52 old","irkafűzve",null,null,null,180320,null,null,null,21600,23760.000000000004]
[{"$nulls":5},"bor+60 old","irkafűzve",null,null,null,200560,null,null,null,24800,27280.000000000004]
[{"$nulls":4},"bor: 4+4            belív: 4+4","4 old","hajtva",null,null,null,22816,null,null,null,2000,2200]
[{"$nulls":5},"bor+8 old","irkafűzve",null,null,null,71576,null,null,null,5000,5500]
[{"$nulls":5},"bor+16 old","irkafűzve",null,null,null,101200,null,null,null,9000,9900]
[{"$nulls":5},"bor+24 old","irkafűzve",null,null,null,132480,null,null,null,13000,14300.000000000002]
[{"$nulls":5},"bor+32 old","irkafűzve",null,null,null,148488,null,null,null,17000,18700]
[{"$nulls":5},"bor+36 old","irkafűzve",null,null,null,170016,null,null,null,19000,20900]
[{"$nulls":5},"bor+44 old","irkafűzve",null,null,null,205160,null,null,null,23000,25300.000000000004]
[{"$nulls":5},"bor+52 old","irkafűzve",null,null,null,228160,null,null,null,27000,29700.000000000004]
[{"$nulls":5},"bor+60 old","irkafűzve",null,null,null,252080,null,null,null,31000,34100]
[null,null,null,"A/4","bor: 4+4            belív: 1+1 fekete","4 old","hajtva",null,null,null,11316,null,null,null,1600,1760.0000000000002]
[{"$nulls":5},"bor+8 old","irkafűzve",null,null,null,102856,null,null,null,4000,4400]
[{"$nulls":5},"bor+16 old","irkafűzve",null,null,null,135240,null,null,null,7200,7920.0000000000009]
[{"$nulls":5},"bor+32 old","irkafűzve",null,null,null,198720,null,null,null,13600,14960.000000000002]
[{"$nulls":5},"bor+44 old","irkafűzve",null,null,null,250240,null,null,null,18400,20240]
[{"$nulls":4},"bor: 4+4            belív: 4+4","4 old","hajtva",null,null,null,32200,null,null,null,2000,2200]
[{"$nulls":5},"bor+8 old","irkafűzve",null,null,null,118864,null,null,null,5000,5500]
[{"$nulls":5},"bor+16 old","irkafűzve",null,null,null,168360,null,null,null,9000,9900]
[{"$nulls":5},"bor+32 old","irkafűzve",null," ",null,263120,null,null,null,17000,18700]
[{"$nulls":5},"bor+44 old","irkafűzve",null,null,null,355120,null,null,null,23000,25300.000000000004]
[{"$nulls":10},{"$f":"SUM(K57:K378)","v":26191104},{"$f":"SUM(L57)","v":4000},{"$f":"SUM(M57)","v":5000},{"$f":"SUM(N57)","v":15000},{"$f":"SUM(O57:O378)","v":4384800},{"$f":"SUM(P57:P378)","v":4823280}]
[null,"mennyiség (db)","papírminőség","méret","szín","terjedelem","konfekcionálás","kötészet"," ",null,"Nyomdai kivitelezés díja (nettó Ft/össz. db)","Nyomdai előkészítés díja (nem nyomdai kompatibilis grafikai anyag esetén) (nettó Ft)","Egyszerű grafikai tervezés (borító + 1 oldalpár) pályázati arculat alapján 1 komplett tervvariáció díja (nettó Ft) ","Grafikai tervezés (borító + 1 oldalpár) egyéb arculat alapján 3 komplett tervvariáció díja (nettó Ft) ","Tördelés-szerkesztés egyszerű 2 elektronikus korrektúraforduló lebonyolításával (nettó Ft/össz. oldal)","Tördelés-szerkesztés összetett  2 elektronikus korrektúraforduló lebonyolításával (nettó Ft/össz. oldal)"]
["Kiadvány (2)",100,"Borító 300 g/m2 műnyomó                        Belív 80 g/m2 ofszet","A/5","Borító 4+4          Belív 1+1 (fekete)","Belív 72 oldal                 Borító 4 oldal","borító matt fóliázva","ragasztókötött",null," ",38000,4000,5000,15000,7200,7920.0000000000009]
[{"$nulls":5},"Belív 96 oldal                 Borító 4 oldal",{"$nulls":4},42000,null,null,null,9600,10560]
[{"$nulls":5},"Belív 128 oldal                 Borító 4 oldal",{"$nulls":4},47000,null,null,null,12800,14080.000000000002]
[{"$nulls":5},"Belív 160 oldal                 Borító 4 oldal",null,null," ",null,50000,null,null,null,16000,17600]
[{"$nulls":5},"Belív 192 oldal                 Borító 4 oldal",{"$nulls":4},54500,null,null,null,19200,21120]
[{"$nulls":5},"Belív 216 oldal                 Borító 4 oldal",{"$nulls":4},57500,null,null,null,21600,23760.000000000004]
[{"$nulls":5},"Belív 240 oldal                 Borító 4 oldal",null,null,null," ",62000,null,null,null,24000,26400.000000000004]
[{"$nulls":5},"Belív 272 oldal                 Borító 4 oldal",{"$nulls":4},67000,null,null,null,27200,29920.000000000004]
[{"$nulls":5},"Belív 304 oldal                 Borító 4 oldal",{"$nulls":4},72000,null,null,null,30400,33440]
[{"$nulls":5},"8 oldalankénti felár 400 oldalig",{"$nulls":4},4100,null,null,null,2000,2200]
[null,null,"Borító 300 g/m2 műnyomó                        Belív 115 g/m2 műnyomó",null,"Borító 4+4          Belív 4+4","Belív 72 oldal                 Borító 4 oldal",{"$nulls":4},81880,null,null,null,10800,11880.000000000002]
[{"$nulls":5},"Belív 96 oldal                 Borító 4 oldal",{"$nulls":4},102120,null,null,null,14400,15840.000000000002]
[{"$nulls":5},"Belív 128 oldal                 Borító 4 oldal",{"$nulls":4},128340,null,null,null,19200,21120]
[{"$nulls":5},"Belív 160 oldal                 Borító 4 oldal",{"$nulls":4},155480,null,null,null,24000,26400.000000000004]
[{"$nulls":5},"Belív 192 oldal                 Borító 4 oldal",{"$nulls":4},182160,null,null,null,28800,31680.000000000004]
[{"$nulls":5},"Belív 216 oldal                 Borító 4 oldal",{"$nulls":4},202400,null,null,null,32400,35640]
[{"$nulls":5},"Belív 240 oldal                 Borító 4 oldal",{"$nulls":4},222640,null,null,null,36000,39600]
[{"$nulls":5},"Belív 272 oldal                 Borító 4 oldal",{"$nulls":4},249320,null,null,null,40800,44880]
[{"$nulls":5},"Belív 304 oldal                 Borító 4 oldal",{"$nulls":4},279680,null,null,null,45600,50160.000000000007]
[{"$nulls":5},"8 oldalankénti felár 400 oldalig",{"$nulls":4},9200,null,null,null,2400,2640]
[null,null,"Borító 300 g/m2 műnyomó                        Belív 80 g/m2 ofszet","VB/5 mérettől függetlenül","Borító 4+4          Belív 1+1 (fekete)","Belív 72 oldal                 Borító 4 oldal",{"$nulls":4},50000,null,null,null,7200,7920.0000000000009]
[{"$nulls":5},"Belív 96 oldal                 Borító 4 oldal",{"$nulls":4},54000,null,null,null,9600,10560]
[{"$nulls":5},"Belív 128 oldal                 Borító 4 oldal",{"$nulls":4},56500,null,null,null,12800,14080.000000000002]
[{"$nulls":5},"Belív 160 oldal                 Borító 4 oldal",{"$nulls":4},60000,null,null,null,16000,17600]
[{"$nulls":5},"Belív 192 oldal                 Borító 4 oldal",{"$nulls":4},64500,null,null,null,19200,21120]
[{"$nulls":5},"Belív 216 oldal                 Borító 4 oldal",{"$nulls":4},69000,null,null,null,21600,23760.000000000004]
[{"$nulls":5},"Belív 240 oldal                 Borító 4 oldal",{"$nulls":4},74000,null,null,null,24000,26400.000000000004]
[{"$nulls":5},"Belív 272 oldal                 Borító 4 oldal",{"$nulls":4},79500,null,null,null,27200,29920.000000000004]
[{"$nulls":5},"Belív 304 oldal                 Borító 4 oldal",{"$nulls":4},85500,null,null,null,30400,33440]
[{"$nulls":5},"8 oldalankénti felár 400 oldalig",{"$nulls":4},2000,null,null,null,2000,2200]
[null,null,"Borító 300 g/m2 műnyomó                        Belív 115 g/m2 műnyomó",null,"Borító 4+4          Belív 4+4","Belív 72 oldal                 Borító 4 oldal",{"$nulls":4},133400,null,null,null,10800,11880.000000000002]
[{"$nulls":5},"Belív 96 oldal                 Borító 4 oldal",{"$nulls":4},161920,null,null,null,14400,15840.000000000002]
[{"$nulls":5},"Belív 128 oldal                 Borító 4 oldal",{"$nulls":4},203780,null,null,null,19200,21120]
[{"$nulls":5},"Belív 160 oldal                 Borító 4 oldal",{"$nulls":4},245180,null,null,null,24000,26400.000000000004]
[{"$nulls":5},"Belív 192 oldal                 Borító 4 oldal",{"$nulls":4},286120,null,null,null,28800,31680.000000000004]
[{"$nulls":5},"Belív 216 oldal                 Borító 4 oldal",{"$nulls":4},318320,null,null,null,32400,35640]
[{"$nulls":5},"Belív 240 oldal                 Borító 4 oldal",{"$nulls":4},349600,null,null,null,36000,39600]
[{"$nulls":5},"Belív 272 oldal                 Borító 4 oldal",{"$nulls":4},391920,null,null,null,40800,44880]
[{"$nulls":5},"Belív 304 oldal                 Borító 4 oldal",{"$nulls":4},393760,null,null,null,45600,50160.000000000007]
[{"$nulls":5},"8 oldalankénti felár 400 oldalig",{"$nulls":4},14260,null,null,null,2400,2640]
[null,200,"Borító 300 g/m2 műnyomó                        Belív 80 g/m2 ofszet","A/5","Borító 4+4          Belív 1+1 (fekete)","Belív 72 oldal                 Borító 4 oldal","borító matt fóliázva","ragasztókötött",null,null,54000,null,null,null,7200,7920.0000000000009]
[{"$nulls":5},"Belív 96 oldal                 Borító 4 oldal",{"$nulls":4},60000,null,null,null,9600,10560]
[{"$nulls":5},"Belív 128 oldal                 Borító 4 oldal",{"$nulls":4},68000,null,null,null,12800,14080.000000000002]
[{"$nulls":5},"Belív 160 oldal                 Borító 4 oldal",{"$nulls":4},78000,null,null,null,16000,17600]
[{"$nulls":5},"Belív 192 oldal                 Borító 4 oldal",{"$nulls":4},88000,null,null,null,19200,21120]
[{"$nulls":5},"Belív 216 oldal                 Borító 4 oldal",{"$nulls":4},96000,null,null,null,21600,23760.000000000004]
[{"$nulls":5},"Belív 240 oldal                 Borító 4 oldal",{"$nulls":4},102000,null,null,null,24000,26400.000000000004]
[{"$nulls":5},"Belív 272 oldal                 Borító 4 oldal",{"$nulls":4},114000,null,null,null,27200,29920.000000000004]
[{"$nulls":5},"Belív 304 oldal                 Borító 4 oldal",{"$nulls":4},123000,null,null,null,30400,33440]
[{"$nulls":5},"8 oldalankénti felár 400 oldalig",{"$nulls":4},6000,null,null,null,2000,2200]
[null,null,"Borító 300 g/m2 műnyomó                        Belív 115 g/m2 műnyomó",null,"Borító 4+4          Belív 4+4","Belív 72 oldal                 Borító 4 oldal",{"$nulls":4},139840,null,null,null,10800,11880.000000000002]
[{"$nulls":5},"Belív 96 oldal                 Borító 4 oldal",{"$nulls":4},178480,null,null,null,14400,15840.000000000002]
[{"$nulls":5},"Belív 128 oldal                 Borító 4 oldal",{"$nulls":4},227240,null,null,null,19200,21120]
[{"$nulls":5},"Belív 160 oldal                 Borító 4 oldal",{"$nulls":4},277840,null,null,null,24000,26400.000000000004]
[{"$nulls":5},"Belív 192 oldal                 Borító 4 oldal",{"$nulls":4},327520,null,null,null,28800,31680.000000000004]
[{"$nulls":5},"Belív 216 oldal                 Borító 4 oldal",{"$nulls":4},366160,null,null,null,32400,35640]
[{"$nulls":5},"Belív 240 oldal                 Borító 4 oldal",{"$nulls":4},403880,null,null,null,36000,39600]
[{"$nulls":5},"Belív 272 oldal                 Borító 4 oldal",{"$nulls":4},454480,null,null,null,40800,44880]
[{"$nulls":5},"Belív 304 oldal                 Borító 4 oldal",{"$nulls":4},509680,null,null,null,45600,50160.000000000007]
[{"$nulls":5},"8 oldalankénti felár 400 oldalig",{"$nulls":4},13800,null,null,null,2400,2640]
[null,null,"Borító 300 g/m2 műnyomó                        Belív 80 g/m2 ofszet","VB/5 mérettől függetlenül","Borító 4+4          Belív 1+1 (fekete)","Belív 72 oldal                 Borító 4 oldal",{"$nulls":4},76000,null,null,null,7200,7920.0000000000009]
[{"$nulls":5},"Belív 96 oldal                 Borító 4 oldal",{"$nulls":4},88000,null,null,null,9600,10560]
[{"$nulls":5},"Belív 128 oldal                 Borító 4 oldal",{"$nulls":4},92000,null,null,null,12800,14080.000000000002]
[{"$nulls":5},"Belív 160 oldal                 Borító 4 oldal",{"$nulls":4},97000,null,null,null,16000,17600]
[{"$nulls":5},"Belív 192 oldal                 Borító 4 oldal",{"$nulls":4},107000,null,null,null,19200,21120]
[{"$nulls":5},"Belív 216 oldal                 Borító 4 oldal",{"$nulls":4},116000,null,null,null,21600,23760.000000000004]
[{"$nulls":5},"Belív 240 oldal                 Borító 4 oldal",{"$nulls":4},123400,null,null,null,24000,26400.000000000004]
[{"$nulls":5},"Belív 272 oldal                 Borító 4 oldal",{"$nulls":4},134000,null,null,null,27200,29920.000000000004]
[{"$nulls":5},"Belív 304 oldal                 Borító 4 oldal",{"$nulls":4},145000,null,null,null,30400,33440]
[{"$nulls":5},"8 oldalankénti felár 400 oldalig",{"$nulls":4},3800,null,null,null,2000,2200]
[null,null,"Borító 300 g/m2 műnyomó                        Belív 115 g/m2 műnyomó",null,"Borító 4+4          Belív 4+4","Belív 72 oldal                 Borító 4 oldal",null,null," ",null,176640,null,null,null,10800,11880.000000000002]
[{"$nulls":5},"Belív 96 oldal                 Borító 4 oldal",{"$nulls":4},215280,null,null,null,14400,15840.000000000002]
[{"$nulls":5},"Belív 128 oldal                 Borító 4 oldal",{"$nulls":4},276000,null,null,null,19200,21120]
[{"$nulls":5},"Belív 160 oldal                 Borító 4 oldal",{"$nulls":4},336720,null,null,null,24000,26400.000000000004]
[{"$nulls":5},"Belív 192 oldal                 Borító 4 oldal",{"$nulls":4},396520,null,null,null,28800,31680.000000000004]
[{"$nulls":5},"Belív 216 oldal                 Borító 4 oldal",{"$nulls":4},448960,null,null,null,32400,35640]
[{"$nulls":5},"Belív 240 oldal                 Borító 4 oldal",{"$nulls":4},485760,null,null,null,36000,39600]
[{"$nulls":5},"Belív 272 oldal                 Borító 4 oldal",{"$nulls":4},534520,null,null,null,40800,44880]
[{"$nulls":5},"Belív 304 oldal                 Borító 4 oldal",{"$nulls":4},605360,null,null,null,45600,50160.000000000007]
[{"$nulls":5},"8 oldalankénti felár 400 oldalig",{"$nulls":4},14720,null,null,null,2400,2640]
[null,300,"Borító 300 g/m2 műnyomó                        Belív 80 g/m2 ofszet","A/5","Borító 4+4          Belív 1+1 (fekete)","Belív 72 oldal                 Borító 4 oldal","borító matt fóliázva","ragasztókötött",null,null,67500,null,null,null,7200,7920.0000000000009]
[{"$nulls":5},"Belív 96 oldal                 Borító 4 oldal",{"$nulls":4},79500,null,null,null,9600,10560]
[{"$nulls":5},"Belív 128 oldal                 Borító 4 oldal",{"$nulls":4},93000,null,null,null,12800,14080.000000000002]
[{"$nulls":5},"Belív 160 oldal                 Borító 4 oldal",{"$nulls":4},108000,null,null,null,16000,17600]
[{"$nulls":5},"Belív 192 oldal                 Borító 4 oldal",{"$nulls":4},123000,null,null,null,19200,21120]
[{"$nulls":5},"Belív 216 oldal                 Borító 4 oldal",{"$nulls":4},132000,null,null,null,21600,23760.000000000004]
[{"$nulls":5},"Belív 240 oldal                 Borító 4 oldal",{"$nulls":4},141000,null,null,null,24000,26400.000000000004]
[{"$nulls":5},"Belív 272 oldal                 Borító 4 oldal",{"$nulls":4},156000,null,null,null,27200,29920.000000000004]
[{"$nulls":5},"Belív 304 oldal                 Borító 4 oldal",{"$nulls":4},169500,null,null,null,30400,33440]
[{"$nulls":5},"8 oldalankénti felár 400 oldalig",{"$nulls":4},7800,null,null,null,2000,2200]
[null,null,"Borító 300 g/m2 műnyomó                        Belív 115 g/m2 műnyomó",null,"Borító 4+4          Belív 4+4","Belív 72 oldal                 Borító 4 oldal",{"$nulls":4},171120,null,null,null,10800,11880.000000000002]
[{"$nulls":5},"Belív 96 oldal                 Borító 4 oldal",{"$nulls":4},209760,null,null,null,14400,15840.000000000002]
[{"$nulls":5},"Belív 128 oldal                 Borító 4 oldal",null,null," ",null,273240,null,null,null,19200,21120]
[{"$nulls":5},"Belív 160 oldal                 Borító 4 oldal",{"$nulls":4},331200,null,null,null,24000,26400.000000000004]
[{"$nulls":5},"Belív 192 oldal                 Borító 4 oldal",{"$nulls":4},393300,null,null,null,28800,31680.000000000004]
[{"$nulls":5},"Belív 216 oldal                 Borító 4 oldal",{"$nulls":4},444360,null,null,null,32400,35640]
[{"$nulls":5},"Belív 240 oldal                 Borító 4 oldal",{"$nulls":4},480240,null,null,null,36000,39600]
[{"$nulls":5},"Belív 272 oldal                 Borító 4 oldal",{"$nulls":4},540960,null,null,null,40800,44880]
[{"$nulls":5},"Belív 304 oldal                 Borító 4 oldal",{"$nulls":4},604440,null,null,null,45600,50160.000000000007]
[{"$nulls":5},"8 oldalankénti felár 400 oldalig",{"$nulls":4},19320,null,null,null,2400,2640]
[null,null,"Borító 300 g/m2 műnyomó                        Belív 80 g/m2 ofszet","VB/5 mérettől függetlenül","Borító 4+4          Belív 1+1 (fekete)","Belív 72 oldal                 Borító 4 oldal",{"$nulls":4},106500,null,null,null,7200,7920.0000000000009]
[{"$nulls":5},"Belív 96 oldal                 Borító 4 oldal",{"$nulls":4},123000,null,null,null,9600,10560]
[{"$nulls":5},"Belív 128 oldal                 Borító 4 oldal",{"$nulls":4},125000,null,null,null,12800,14080.000000000002]
[{"$nulls":5},"Belív 160 oldal                 Borító 4 oldal",{"$nulls":4},135000,null,null,null,16000,17600]
[{"$nulls":5},"Belív 192 oldal                 Borító 4 oldal",{"$nulls":4},150000,null,null,null,19200,21120]
[{"$nulls":5},"Belív 216 oldal                 Borító 4 oldal",{"$nulls":4},162000,null,null,null,21600,23760.000000000004]
[{"$nulls":5},"Belív 240 oldal                 Borító 4 oldal",{"$nulls":4},174000,null,null,null,24000,26400.000000000004]
[{"$nulls":5},"Belív 272 oldal                 Borító 4 oldal",{"$nulls":4},189000,null,null,null,27200,29920.000000000004]
[{"$nulls":5},"Belív 304 oldal                 Borító 4 oldal",{"$nulls":4},205500,null,null,null,30400,33440]
[{"$nulls":5},"8 oldalankénti felár 400 oldalig",{"$nulls":4},5400,null,null,null,2000,2200]
[null,null,"Borító 300 g/m2 műnyomó                        Belív 115 g/m2 műnyomó",null,"Borító 4+4          Belív 4+4","Belív 72 oldal                 Borító 4 oldal",{"$nulls":4},193200,null,null,null,10800,11880.000000000002]
[{"$nulls":5},"Belív 96 oldal                 Borító 4 oldal",{"$nulls":4},231840,null,null,null,14400,15840.000000000002]
[{"$nulls":5},"Belív 128 oldal                 Borító 4 oldal",{"$nulls":4},300840,null,null,null,19200,21120]
[{"$nulls":5},"Belív 160 oldal                 Borító 4 oldal",{"$nulls":4},361560,null,null,null,24000,26400.000000000004]
[{"$nulls":5},"Belív 192 oldal                 Borító 4 oldal",{"$nulls":4},422280,null,null,null,28800,31680.000000000004]
[{"$nulls":5},"Belív 216 oldal                 Borító 4 oldal",{"$nulls":4},474720,null,null,null,32400,35640]
[{"$nulls":5},"Belív 240 oldal                 Borító 4 oldal",{"$nulls":4},513360,null,null,null,36000,39600]
[{"$nulls":5},"Belív 272 oldal                 Borító 4 oldal",{"$nulls":4},565800,null,null,null,40800,44880]
[{"$nulls":5},"Belív 304 oldal                 Borító 4 oldal",{"$nulls":4},632040,null,null,null,45600,50160.000000000007]
[{"$nulls":5},"8 oldalankénti felár 400 oldalig",{"$nulls":4},15456,null,null,null,2400,2640]
[null,500,"Borító 300 g/m2 műnyomó                        Belív 80 g/m2 ofszet","A/5","Borító 4+4          Belív 1+1 (fekete)","Belív 72 oldal                 Borító 4 oldal","borító matt fóliázva","ragasztókötött",null,null,100000,null,null,null,7200,7920.0000000000009]
[{"$nulls":5},"Belív 96 oldal                 Borító 4 oldal",null,null," ",null,117500,null,null,null,9600,10560]
[{"$nulls":5},"Belív 128 oldal                 Borító 4 oldal",{"$nulls":4},140000,null,null,null,12800,14080.000000000002]
[{"$nulls":5},"Belív 160 oldal                 Borító 4 oldal",{"$nulls":4},162500,null,null,null,16000,17600]
[{"$nulls":5},"Belív 192 oldal                 Borító 4 oldal",{"$nulls":4},185000,null,null,null,19200,21120]
[{"$nulls":5},"Belív 216 oldal                 Borító 4 oldal",{"$nulls":4},202500,null,null,null,21600,23760.000000000004]
[{"$nulls":5},"Belív 240 oldal                 Borító 4 oldal",{"$nulls":4},217500,null,null,null,24000,26400.000000000004]
[{"$nulls":5},"Belív 272 oldal                 Borító 4 oldal",null,null," ",null,242500,null,null,null,27200,29920.000000000004]
[{"$nulls":5},"Belív 304 oldal                 Borító 4 oldal",{"$nulls":4},265000,null,null,null,30400,33440]
[{"$nulls":5},"8 oldalankénti felár 400 oldalig",{"$nulls":4},11500,null,null,null,2000,2200]
[null,null,"Borító 300 g/m2 műnyomó                        Belív 115 g/m2 műnyomó",null,"Borító 4+4          Belív 4+4","Belív 72 oldal                 Borító 4 oldal",{"$nulls":4},193200,null,null,null,10800,11880.000000000002]
[{"$nulls":5},"Belív 96 oldal                 Borító 4 oldal",{"$nulls":4},234600,null,null,null,14400,15840.000000000002]
[{"$nulls":5},"Belív 128 oldal                 Borító 4 oldal",{"$nulls":4},301300,null,null,null,19200,21120]
[{"$nulls":5},"Belív 160 oldal                 Borító 4 oldal",{"$nulls":4},363400,null,null,null,24000,26400.000000000004]
[{"$nulls":5},"Belív 192 oldal                 Borító 4 oldal",{"$nulls":4},432400,null,null,null,28800,31680.000000000004]
[{"$nulls":5},"Belív 216 oldal                 Borító 4 oldal",{"$nulls":4},487600,null,null,null,32400,35640]
[{"$nulls":5},"Belív 240 oldal                 Borító 4 oldal",{"$nulls":4},526700,null,null,null,36000,39600]
[{"$nulls":5},"Belív 272 oldal                 Borító 4 oldal",{"$nulls":4},591100,null,null,null,40800,44880]
[{"$nulls":5},"Belív 304 oldal                 Borító 4 oldal",{"$nulls":4},662400,null,null,null,45600,50160.000000000007]
[{"$nulls":5},"8 oldalankénti felár 400 oldalig",{"$nulls":4},20700,null,null,null,2400,2640]
[null,null,"Borító 300 g/m2 műnyomó                        Belív 80 g/m2 ofszet","VB/5 mérettől függetlenül","Borító 4+4          Belív 1+1 (fekete)","Belív 72 oldal                 Borító 4 oldal",{"$nulls":4},148500,null,null,null,7200,7920.0000000000009]
[{"$nulls":5},"Belív 96 oldal                 Borító 4 oldal",{"$nulls":4},160000,null,null,null,9600,10560]
[{"$nulls":5},"Belív 128 oldal                 Borító 4 oldal",{"$nulls":4},167500,null,null,null,12800,14080.000000000002]
[{"$nulls":5},"Belív 160 oldal                 Borító 4 oldal",{"$nulls":4},192500,null,null,null,16000,17600]
[{"$nulls":5},"Belív 192 oldal                 Borító 4 oldal",{"$nulls":4},217500,null,null,null,19200,21120]
[{"$nulls":5},"Belív 216 oldal                 Borító 4 oldal",{"$nulls":4},236000,null,null,null,21600,23760.000000000004]
[{"$nulls":5},"Belív 240 oldal                 Borító 4 oldal",{"$nulls":4},255000,null,null,null,24000,26400.000000000004]
[{"$nulls":5},"Belív 272 oldal                 Borító 4 oldal",null,null,null," ",282500,null,null,null,27200,29920.000000000004]
[{"$nulls":5},"Belív 304 oldal                 Borító 4 oldal",{"$nulls":4},307500,null,null,null,30400,33440]
[{"$nulls":5},"8 oldalankénti felár 400 oldalig",{"$nulls":4},8500,null,null,null,2000,2200]
[null,null,"Borító 300 g/m2 műnyomó                        Belív 115 g/m2 műnyomó",null,"Borító 4+4          Belív 4+4","Belív 72 oldal                 Borító 4 oldal",{"$nulls":4},212980,null,null,null,10800,11880.000000000002]
[{"$nulls":5},"Belív 96 oldal                 Borító 4 oldal",{"$nulls":4},257600,null,null,null,14400,15840.000000000002]
[{"$nulls":5},"Belív 128 oldal                 Borító 4 oldal",{"$nulls":4},326600,null,null,null,19200,21120]
[{"$nulls":5},"Belív 160 oldal                 Borító 4 oldal",{"$nulls":4},391920,null,null,null,24000,26400.000000000004]
[{"$nulls":5},"Belív 192 oldal                 Borító 4 oldal",{"$nulls":4},464600,null,null,null,28800,31680.000000000004]
[{"$nulls":5},"Belív 216 oldal                 Borító 4 oldal",{"$nulls":4},524400,null,null,null,32400,35640]
[{"$nulls":5},"Belív 240 oldal                 Borító 4 oldal",{"$nulls":4},568100,null,null,null,36000,39600]
[{"$nulls":5},"Belív 272 oldal                 Borító 4 oldal",{"$nulls":4},627900,null,null,null,40800,44880]
[{"$nulls":5},"Belív 304 oldal                 Borító 4 oldal",{"$nulls":4},699200,null,null,null,45600,50160.000000000007]
[{"$nulls":5},"8 oldalankénti felár 400 oldalig",{"$nulls":4},16560,null,null,null,2400,2640]
[{"$nulls":10},{"$f":"SUM(K381:K540)","v":34515676},{"$f":"SUM(L381)","v":4000},{"$f":"SUM(M381)","v":5000},{"$f":"SUM(N381)","v":15000},{"$f":"SUM(O381:O540)","v":3395200},{"$f":"SUM(P381:P540)","v":3734720}]
[null,"mennyiség (db)","papírminőség","méret","szín","terjedelem (beoldal)","konfekcionálás",null,null,null,"Nyomdai kivitelezés díja (nettó Ft/össz. db)","Nyomdai előkészítés díja (nem nyomdai kompatibilis grafikai anyag esetén) (nettó Ft)","Egyszerű grafikai tervezés (borító + 1 oldalpár) pályázati arculat alapján 1 komplett tervvariáció díja (nettó Ft) ","Grafikai tervezés (borító + 1 oldalpár) egyéb arculat alapján 3 komplett tervvariáció díja (nettó Ft) ","Tördelés-szerkesztés egyszerű 2 elektronikus korrektúraforduló lebonyolításával (nettó Ft/össz. oldal)","Tördelés-szerkesztés összetett  2 elektronikus korrektúraforduló lebonyolításával (nettó Ft/össz. oldal)",null," "]
["Kiadvány (3) ",100,"Bevonó: 150 g műnyomó, Előzék: 170 g ofszet, Belív: 80 g ofszet ","Könyvtest  B5 (pontos mérettől függetlenül)","Borító 4+0, Előzék: 4+0  Belív 1+1 (fekete)","120 old","borító matt fóliázva, cérnafűzve, borító keménytáblába kötve",null,null,null,164350,6000,8000,20000,10200,12240]
[{"$nulls":5},"168 old",null,null," ",null,181450,null,null,null,14280,17136]
[{"$nulls":5},"192 old",{"$nulls":4},190000,null,null,null,16320,19584]
[{"$nulls":5},"264 old",{"$nulls":4},223250,null,null,null,22440,26928]
[{"$nulls":5},"312 old",{"$nulls":4},244150,null,null,null,26520,31824]
[{"$nulls":5},"416 old",{"$nulls":4},301150,null,null,null,35360,42432]
[{"$nulls":5},"520 old",{"$nulls":4},357200,null,null,null,44200,53040]
[{"$nulls":5},"600 old",{"$nulls":4},399950,null,null,null,51000,61200]
[{"$nulls":5},"8 oldalankénti felár a fenti sorok oldalszámától való pozitív eltérés esetén 600 oldalig",{"$nulls":4},5700,null,null,null,1700,2040]
[null,null,"Bevonó: 150 g műnyomó, Előzék: 170 g ofszet, Belív: 130 g műnyomó","Könyvtest  B5 (pontos mérettől függetlenül)","Borító 4+0, Előzék: 4+0  Belív 4+4","120 old",{"$nulls":4},339150,null,null,null,15300,18360]
[{"$nulls":5},"168 old",{"$nulls":4},426550,null,null,null,21420,25704]
[{"$nulls":5},"192 old",{"$nulls":4},465500,null,null,null,24480,29376]
[{"$nulls":5},"264 old",{"$nulls":4},600400,null,null,null,33660,40392]
[{"$nulls":5},"312 old",null,null,null," ",694450,null,null,null,39780,47736]
[{"$nulls":5},"416 old",{"$nulls":4},913900,null,null,null,53040,63648]
[{"$nulls":5},"520 old",{"$nulls":4},1132400,null,null,null,66300,79560]
[{"$nulls":5},"600 old",{"$nulls":4},1294850,null,null,null,76500,91800]
[{"$nulls":5},"8 oldalankénti felár a fenti sorok oldalszámától való pozitív eltérés esetén 600 oldalig",{"$nulls":4},12825,null,null,null,2040,2448]
[null,150,"Bevonó: 150 g műnyomó, Előzék: 170 g ofszet, Belív: 80 g ofszet ","Könyvtest  B5 (pontos mérettől függetlenül)","Borító 4+0, Előzék: 4+0  Belív 1+1 (fekete)","120 old","borító matt fóliázva, cérnafűzve, borító keménytáblába kötve",null,null,null,188812.5,null,null,null,10200,12240]
[{"$nulls":5},"168 old",{"$nulls":4},214462.5,null,null,null,14280,17136]
[{"$nulls":5},"192 old",{"$nulls":4},228000,null,null,null,16320,19584]
[{"$nulls":5},"264 old",{"$nulls":4},265050,null,null,null,22440,26928]
[{"$nulls":5},"312 old",{"$nulls":4},292125,null,null,null,26520,31824]
[{"$nulls":5},"416 old",{"$nulls":4},363375,null,null,null,35360,42432]
[{"$nulls":5},"520 old",{"$nulls":4},438900,null,null,null,44200,53040]
[{"$nulls":5},"600 old",{"$nulls":4},497325,null,null,null,51000,61200]
[{"$nulls":5},"8 oldalankénti felár a fenti sorok oldalszámától való pozitív eltérés esetén 600 oldalig",{"$nulls":4},6555,null,null,null,1700,2040]
[null,null,"Bevonó: 150 g műnyomó, Előzék: 170 g ofszet, Belív: 130 g műnyomó","Könyvtest  B5 (pontos mérettől függetlenül)","Borító 4+0, Előzék: 4+0  Belív 4+4","120 old",{"$nulls":4},349125,null,null,null,15300,18360]
[{"$nulls":5},"168 old",{"$nulls":4},438900,null,null,null,21420,25704]
[{"$nulls":5},"192 old",{"$nulls":4},477375,null,null,null,24480,29376]
[{"$nulls":5},"264 old",{"$nulls":4},632700,null,null,null,33660,40392]
[{"$nulls":5},"312 old",{"$nulls":4},726750,null,null,null,39780,47736]
[{"$nulls":5},"416 old",{"$nulls":4},937650,null,null,null,53040,63648]
[{"$nulls":5},"520 old",{"$nulls":4},1164225,null,null,null,66300,79560]
[{"$nulls":5},"600 old",{"$nulls":4},1346625,null,null,null,76500,91800]
[{"$nulls":5},"8 oldalankénti felár a fenti sorok oldalszámától való pozitív eltérés esetén 600 oldalig",{"$nulls":4},12825,null,null,null,2040,2448]
[null,200,"Bevonó: 150 g műnyomó, Előzék: 170 g ofszet, Belív: 80 g ofszet ","Könyvtest  B5 (pontos mérettől függetlenül)","Borító 4+0, Előzék: 4+0  Belív 1+1 (fekete)","120 old","borító matt fóliázva, cérnafűzve, borító keménytáblába kötve",null,null,null,209000,null,null,null,10200,12240]
[{"$nulls":5},"168 old",{"$nulls":4},241300,null,null,null,14280,17136]
[{"$nulls":5},"192 old",{"$nulls":4},258400,null,null,null,16320,19584]
[{"$nulls":5},"264 old",{"$nulls":4},305900,null,null,null,22440,26928]
[{"$nulls":5},"312 old",{"$nulls":4},338200,null,null,null,26520,31824]
[{"$nulls":5},"416 old",{"$nulls":4},430350,null,null,null,35360,42432]
[{"$nulls":5},"520 old",{"$nulls":4},518700,null,null,null,44200,53040]
[{"$nulls":5},"600 old",{"$nulls":4},589000,null,null,null,51000,61200]
[{"$nulls":5},"8 oldalankénti felár a fenti sorok oldalszámától való pozitív eltérés esetén 600 oldalig",{"$nulls":4},7600,null,null,null,1700,2040]
[null,null,"Bevonó: 150 g műnyomó, Előzék: 170 g ofszet, Belív: 130 g műnyomó","Könyvtest  B5 (pontos mérettől függetlenül)","Borító 4+0, Előzék: 4+0  Belív 4+4","120 old",{"$nulls":4},358150,null,null,null,15300,18360]
[{"$nulls":5},"168 old",{"$nulls":4},459800,null,null,null,21420,25704]
[{"$nulls":5},"192 old",{"$nulls":4},501600,null,null,null,24480,29376]
[{"$nulls":5},"264 old",{"$nulls":4},649800,null,null,null,33660,40392]
[{"$nulls":5},"312 old",{"$nulls":4},746700,null,null,null,39780,47736]
[{"$nulls":5},"416 old",{"$nulls":4},977550,null,null,null,53040,63648]
[{"$nulls":5},"520 old",{"$nulls":4},1212200,null,null,null,66300,79560]
[{"$nulls":5},"600 old",{"$nulls":4},1390800,null,null,null,76500,91800]
[{"$nulls":5},"8 oldalankénti felár a fenti sorok oldalszámától való pozitív eltérés esetén 600 oldalig",{"$nulls":4},14250,null,null,null,2040,2448]
[null,300,"Bevonó: 150 g műnyomó, Előzék: 170 g ofszet, Belív: 80 g ofszet ","Könyvtest  B5 (pontos mérettől függetlenül)","Borító 4+0, Előzék: 4+0  Belív 1+1 (fekete)","120 old","borító matt fóliázva, cérnafűzve, borító keménytáblába kötve",null,null,null,250800,null,null,null,10200,12240]
[{"$nulls":5},"168 old",{"$nulls":4},279300,null,null,null,14280,17136]
[{"$nulls":5},"192 old",{"$nulls":4},290700,null,null,null,16320,19584]
[{"$nulls":5},"264 old",{"$nulls":4},350550,null,null,null,22440,26928]
[{"$nulls":5},"312 old",{"$nulls":4},393300,null,null,null,26520,31824]
[{"$nulls":5},"416 old",{"$nulls":4},493050,null,null,null,35360,42432]
[{"$nulls":5},"520 old",{"$nulls":4},607050,null,null,null,44200,53040]
[{"$nulls":5},"600 old",{"$nulls":4},689700,null,null,null,51000,61200]
[{"$nulls":5},"8 oldalankénti felár a fenti sorok oldalszámától való pozitív eltérés esetén 600 oldalig",{"$nulls":4},8550,null,null,null,1700,2040]
[null,null,"Bevonó: 150 g műnyomó, Előzék: 170 g ofszet, Belív: 130 g műnyomó","Könyvtest  B5 (pontos mérettől függetlenül)","Borító 4+0, Előzék: 4+0  Belív 4+4","120 old",{"$nulls":4},393300,null,null,null,15300,18360]
[{"$nulls":5},"168 old",{"$nulls":4},493050,null,null,null,21420,25704]
[{"$nulls":5},"192 old",{"$nulls":4},535800,null,null,null,24480,29376]
[{"$nulls":5},"264 old",{"$nulls":4},692550,null,null,null,33660,40392]
[{"$nulls":5},"312 old",{"$nulls":4},800850,null,null,null,39780,47736]
[{"$nulls":5},"416 old",{"$nulls":4},1040250,null,null,null,53040,63648]
[{"$nulls":5},"520 old",{"$nulls":4},1291050,null,null,null,66300,79560,null,null,null," "]
[{"$nulls":5},"600 old",{"$nulls":4},1493400,null,null,null,76500,91800]
[{"$nulls":5},"8 oldalankénti felár a fenti sorok oldalszámától való pozitív eltérés esetén 600 oldalig",{"$nulls":4},14250,null,null,null,2040,2448]
[{"$nulls":10},{"$f":"SUM(K543:K614)","v":35854805},{"$f":"SUM(L543)","v":6000},{"$f":"SUM(M543)","v":8000},{"$f":"SUM(N543)","v":20000},{"$f":"SUM(O543:O614)","v":2218160},{"$f":"SUM(P543:P614)","v":2661792}]
["Speciális kiadványok","mennyiség (db)","papírminőség","méret","szín","terjedelem","kötészet",null,null,null,"Nyomdai kivitelezés díja (nettó Ft/össz. db)","Nyomdai előkészítés díja (ppt vagy egyéb nem nyomdai kompatibilis grafikai anyag esetén) (nettó Ft)","Egyszerű grafikai tervezés (borító + 1 oldalpár) pályázati arculat alapján 1 komplett tervvariáció díja (nettó Ft) ","Grafikai tervezés (borító + 1 oldalpár) egyéb arculat alapján 3 komplett tervvariáció díja (nettó Ft) ","Tördelés-szerkesztés egyszerű 2 elektronikus korrektúraforduló lebonyolításával (nettó Ft/össz. oldal)","Tördelés-szerkesztés összetett  2 elektronikus korrektúraforduló lebonyolításával (nettó Ft/össz. oldal)"]
["Speciális kiadvány 1",2500,"60 g/m2 exo","A/4","4+4","20 oldal belív               +4 oldal borító","irkafűzve",null,null,null,165000,4000,5000,15000,12000,18000]
[null,2500,"bor: 300 g műnyomó, belív 115 g műnyomó","A/4","4+4","20 oldal belív               +4 oldal borító","irkafűzve",null,null,null,242500,4000,null,null,12000,18000]
["Speciális kiadvány 2",1000,"Borító 115 g/m2 műnyomó Belív 80 g/m2 ofszet","A/5","Borító 4+4          Belív 1+1 (fekete)","24 oldal belív               +4 oldal borító","irkafűzve",null,null,null,57200,4000,5000,15000,4800,6000]
[null,800,{"$nulls":8},49840,4000,null,null,4800,6000]
[null,500,{"$nulls":8},41500,4000,null,null,4800,6000]
["Speciális kiadvány 3",800,"Borító 300 g/m2 műnyomó Belív 90 g/m2 műnyomó","A/4","Borító 4+4            Belív 4+4","24 oldal belív               +4 oldal borító","irkafűzve, borító fóliázva",null,null,null,171040,4000,5000,15000,7200,9600]
["Speciális kiadvány 4",300,"bor: 300 g műnyomó, belív: 170 g műnyomó, hátlap 300 g enso","420*297 mm","4+4","bor+12 old+hátlap","fehér fém ikerspirállal spirálozva, akasztóval ellátva, lakkozva végig",null,null,null,208500,4000,5000,15000,10000,10000,null,null,null," "]
[null,500,{"$nulls":8},250000,4000,null,null,10000,10000]
["Speciális kiadvány 5",7000,"bor: 250 g műnyomó, belív: 115 g műnyomó,","A/5","4+4","Bor+60 old","irkafűzve",null,null,null,700000,4000,5000,15000,21000,27000]
[{"$nulls":5}," Bor+84 old",{"$nulls":4},910000,null,null,null,29400,37800]
[{"$nulls":5},"8 oldalankénti felár a fenti sor oldalszámától való pozitív eltérés esetén 84 oldalig",{"$nulls":4},67900,null,null,null,2000,2500,null,null,null," "]
["Speciális kiadvány 6",4000,"bor: 200 g műnyomó, belív: 150 g műnyomó","VB/5 mérettől függetlenül","4+4","bor+56 old","irkafűzve, borító matt fóliázva",null,null,null,540000,4000,5000,15000,19600,25200,null,null," "]
[{"$nulls":5},"8 oldalankénti felár a fenti sor oldalszámától való pozitív eltérés esetén 80 oldalig","irkafűzve, borító matt fóliázva",null,null,null,46000,null,null,null,2000,2500]
["Speciális kiadvány 7",300,"bor: 300 g műnyomó, belív 115 g műnyomó","168*238 mm","Borító 4+0          Belív 1+1","Belív 252 oldal                 Borító 4 oldal"," ragasztókötött",null,null,null,268800,4000,5000,15000,37800,41580]
[{"$nulls":5},"Belív 304 oldal                 Borító 4 oldal",{"$nulls":4},300000,4000,null,null,45600,50160.000000000007]
[{"$nulls":5},"Belív 352 oldal                 Borító 4 oldal",{"$nulls":4},339000,4000,null,null,52800,58080.000000000007,null,null,null," "]
[{"$nulls":5},"Belív 396 oldal                 Borító 4 oldal",{"$nulls":4},382500,4000,null,null,59400,65340.000000000007]
[null,2000,"bor: 350 g matt, belív: 170 g matt","A/4","4+4","bor+20 old","irkafűzve, borító karcmentes matt fóliázva, 3D UV felületkezeléssel ellátva, 1 és 4 oldalon",null,null,null,386000,4000,5000,15000,10000,11000]
[{"$nulls":5},"bor+28 old",{"$nulls":4},466000,4000,null,null,14000,15400.000000000002]
["Speciális kiadvány 8",{"$nulls":4},"bor+32 old",{"$nulls":4},478000,4000,null,null,16000,17600]
[{"$nulls":5},"8 oldalankénti felár a fenti sor oldalszámától való pozitív eltérés esetén 48 oldalig",{"$nulls":4},59400,4000,null,null,2000,2500]
[{"$nulls":11},4000]
[]
["Speciális kiadvány 9",100,"Borító 300 g/m2 műnyomó                        Belív 80 g/m2 ofszet","142*205 mm","Borító 4+4          Belív 1+1 (fekete)","Belív 96 oldal                 Borító 4 oldal","borító fényes fóliázva, ragasztókötött",null,null,null,41000,4000,5000,15000,14400,17280]
[{"$nulls":5},"Belív 128 oldal                 Borító 4 oldal",{"$nulls":4},45000,4000,null,null,27300,32760]
[{"$nulls":5},"Belív 160 oldal                 Borító 4 oldal",null,null," ",null,49000,4000,null,null,24000,28800]
[null,300,null,null,null,"Belív 96 oldal                 Borító 4 oldal",{"$nulls":4},76500,4000,null,null,14400,17280]
[{"$nulls":5},"Belív 128 oldal                 Borító 4 oldal",{"$nulls":4},90000,4000,null,null,27300,32760]
[{"$nulls":5},"Belív 160 oldal                 Borító 4 oldal",{"$nulls":4},103500,4000,null,null,24000,28800]
["Speciális kiadvány 10",2000,"Borító: 250 g műnyomó Belív: 115 g műnyomó","200*260 mm","4+4","Bor: 4 old,             Belív: 64 old","borító bársonymatt fóliázva, ragasztókötve",null,null,null,572000,4000,5000,15000,16000,19200]
[{"$nulls":10},{"$f":"SUM(K617:K646)","v":7106180},104000,50000,150000,524600,617140]
[null,"mennyiség (db)","papírminőség","méret","szín","terjedelem","konfekcionálás","kötészet",null,null,"Nyomdai kivitelezés díja (nettó Ft/db)","Nyomdai előkészítés díja (ppt vagy egyéb nem nyomdai kompatibilis grafikai anyag esetén) (nettó Ft)","Egyszerű gafikai tervezés, szerkesztés díja (pályázati arculat alapján 1 komplett tervvariáció) (nettó Ft)","Grafikai tervezés, szerkesztés díja (egyéb arculat alapján 3 komplett tervvariáció) (nettó Ft)"]
["Mappa ","20-tól 50-ig","350 g műnyomó","A4 kiadványt befogadó kiterített méret 45 cm széles, 31 cm magas, alsó lehajtható rész 6 cm, 5 mm-es gerinccel, alul-felül stancolt füllel stancolt névjegytartóval, vagy a megadott mérethez hasonló méret +-1 cm eltéréssel. A stancformát a cégnek kell biztosítani","4+0","2 old","fóliázva matt fóliával","A mappákat kiterített állapotban kérjük szállítani",null,null,1780,4000,8000,15000]
[{"$nulls":4},"4+4",null,"fóliázva matt fóliával + UV lakk 1 oldalon",null,null," ",3375]
[null,"51-200-ig","350 g műnyomó","A4 kiadványt befogadó kiterített méret 45 cm széles, 31 cm magas, alsó lehajtható rész 6 cm, 5 mm-es gerinccel, alul-felül stancolt füllel stancolt névjegytartóval, vagy a megadott mérethez hasonló méret +-1 cm eltéréssel. A stancformát a cégnek kell biztosítani","4+0","2 old","fóliázva matt fóliával","A mappákat kiterített állapotban kérjük szállítani",null,null,630]
[{"$nulls":4},"4+4",null,"fóliázva matt fóliával + UV lakk 1 oldalon",null,null,null,1255]
[null,"201-500-ig","350 g műnyomó","A4 kiadványt befogadó kiterített méret 45 cm széles, 31 cm magas, alsó lehajtható rész 6 cm, 5 mm-es gerinccel, alul-felül stancolt füllel stancolt névjegytartóval, vagy a megadott mérethez hasonló méret +-1 cm eltéréssel. A stancformát a cégnek kell biztosítani","4+0","2 old","fóliázva matt fóliával","A mappákat kiterített állapotban kérjük szállítani",null,null,196]
[{"$nulls":4},"4+4",null,"fóliázva matt fóliával + UV lakk 1 oldalon",null,null,null,365]
[null,"501-1000-ig","350 g műnyomó","A4 kiadványt befogadó kiterített méret 45 cm széles, 31 cm magas, alsó lehajtható rész 6 cm, 5 mm-es gerinccel, alul-felül stancolt füllel stancolt névjegytartóval, vagy a megadott mérethez hasonló méret +-1 cm eltéréssel. A stancformát a cégnek kell biztosítani","4+0","2 old","fóliázva matt fóliával","A mappákat kiterített állapotban kérjük szállítani",null,null,120]
[{"$nulls":4},"4+4",null,"fóliázva matt fóliával + UV lakk 1 oldalon",null,null,null,225]
[{"$nulls":10},{"$f":"SUM(K649:K656)","v":7946},{"$f":"SUM(L649)","v":4000},{"$f":"SUM(M649)","v":8000},{"$f":"SUM(N649)","v":15000}]
[null,"mennyiség (db)","papírminőség","méret","szín","terjedelem","kötészet",null,null,null,"Nyomdai kivitelezés díja (nettó Ft/db)","Nyomdai előkészítés díja (ppt vagy egyéb nem nyomdai kompatibilis grafikai anyag esetén) (nettó Ft)","Tördelés-szerkesztés egyszerű kapott forrásanyag alapján (nettó Ft/össz. oldal)","Tördelés-szerkesztés bonyolult kapott forrásanyag alapján (nettó Ft/össz. oldal)"]
["Technikai nyomtatvány","20-tól 250-ig","80 g/m2 ofszet papír","A4","1+1 fekete","2 oldal","_____",null,null,null,91,1000,5000,7000]
[null,"251-től 550-ig",{"$nulls":8},13]
[null,"551-tól 1050-ig",{"$nulls":8},9]
[null,"1051-től 2050-ig",{"$nulls":8},7]
[null,"2051-től 3050-ig",{"$nulls":8},6.1]
[null,"3051-től 4050-ig",{"$nulls":8},5.9]
[null,"4051-től 5050-ig",{"$nulls":8},5.7]
[null,"20-tól 250-ig","80 g/m2 ofszet papír","A4","1+1 fekete","8 oldal","egymásba hordva",null,null,null,163,null,5000,7000]
[null,"251-től 550-ig",{"$nulls":8},40]
[null,"551-tól 1050-ig",{"$nulls":8},35]
[null,"1051-től 2050-ig",{"$nulls":8},28]
[null,"2051-től 3050-ig",{"$nulls":8},22.2]
[null,"3051-től 4050-ig",{"$nulls":8},19.100000000000001]
[null,"4051-től 5050-ig",{"$nulls":8},17.600000000000001]
[null,"20-tól 250-ig","80 g/m2 ofszet papír","A4","1+1 fekete","4 oldal","egyszer hajtva",null,null,null,149,null,5000,7000]
[null,"251-től 550-ig",{"$nulls":8},22]
[null,"551-tól 1050-ig",{"$nulls":8},17]
[null,"1051-től 2050-ig",{"$nulls":8},14.1]
[null,"2051-től 3050-ig",{"$nulls":8},12.4]
[null,"3051-től 4050-ig",{"$nulls":8},12]
[null,"4051-től 5050-ig",{"$nulls":8},11.1]
[null,"20-tól 250-ig","80 g/m2 ofszet papír","A4","1+1 fekete","6 oldal, repülő oldallal belehordva","betétként belerakva",null,null,null,193,null,5000,7000]
[null,"251-től 550-ig",{"$nulls":8},35]
[null,"551-tól 1050-ig",{"$nulls":8},30]
[null,"1051-től 2050-ig",{"$nulls":8},26.1]
[null,"2051-től 3050-ig",{"$nulls":8},20.100000000000001]
[null,"3051-től 4050-ig",{"$nulls":8},17.7]
[null,"4051-től 5050-ig",{"$nulls":8},16.600000000000001]
[{"$nulls":10},{"$f":"SUM(K659:K686)","v":1038.7},{"$f":"SUM(L659)","v":1000},{"$f":"SUM(M659:M686)","v":20000},{"$f":"SUM(N659:N686)","v":28000}]
[null,"mennyiség (db)","papírminőség","méret","szín","kötészet",{"$nulls":4},"Nyomdai kivitelezés díja (nettó Ft/db)","Nyomdai előkészítés díja (ppt vagy egyéb nem nyomdai kompatibilis grafikai anyag esetén) (nettó Ft)","Egyszerű gafikai tervezés, szerkesztés díja (pályázati arculat alapján 1 komplett tervvariáció) (nettó Ft)","Grafikai tervezés, szerkesztés díja (egyéb arculat alapján 3 komplett tervvariáció) (nettó Ft)"]
["Leporelló","50-től 250-ig","150 g/m2 műnyomó","A4 két oldalas","4+4","kétszer hajtva",{"$nulls":4},125,4000,8000,12000]
[null,null,null,"A5 két oldalas",null,"hajtva",{"$nulls":4},101]
[null,"251-től 550-ig",null,"A4 két oldalas",null,"kétszer hajtva",{"$nulls":4},55]
[null,null,null,"A5 két oldalas",null,"hajtva",{"$nulls":4},40]
[null,"551-től 1050-ig",null,"A4 két oldalas",null,"kétszer hajtva",{"$nulls":4},33]
[null,null,null,"A5 két oldalas",null,"hajtva",{"$nulls":4},30]
[null,"1051-től 2050-ig",null,"A4 két oldalas",null,"kétszer hajtva",{"$nulls":4},19.2]
[null,null,null,"A5 két oldalas",null,"hajtva",{"$nulls":4},17.5]
[null,"2051-től 3050-ig",null,"A4 két oldalas",null,"kétszer hajtva",{"$nulls":4},12.6]
[null,null,null,"A5 két oldalas",null,"hajtva",{"$nulls":4},9.8000000000000007]
[{"$nulls":10},{"$f":"SUM(K689:K698)","v":443.1},{"$f":"SUM(L689)","v":4000},{"$f":"SUM(M689)","v":8000},{"$f":"SUM(N689)","v":12000}]
[null,"mennyiség (db)","papírminőség","méret","szín","kötészet",{"$nulls":4},"Nyomdai kivitelezés díja (nettó Ft/db)","Nyomdai előkészítés díja (ppt vagy egyéb nem nyomdai kompatibilis grafikai anyag esetén) (nettó Ft)","szerkesztés meglévő arculat alapján nevenként (nettó Ft)"]
["Névjegykártya","50-től 200-ig","350 g/m2 műnyomó","90*50 mm","4+0","vágva",{"$nulls":4},50,1000,1000]
[{"$nulls":4},"4+4",{"$nulls":5},53]
[null,"201-től 500-ig",null,null,"4+0",{"$nulls":5},19]
[{"$nulls":4},"4+4",{"$nulls":5},22]
[null,"501-től 1000-ig",null,null,"4+0",{"$nulls":5},9.1999999999999993]
[{"$nulls":4},"4+4",{"$nulls":5},11,null,null,"db * függetlenül attól, hogy hányféle névjegykártya gyártódik egyszerre"]
[null,"1001-től 1500-ig",null,null,"4+0",{"$nulls":5},7.5]
[{"$nulls":4},"4+4",{"$nulls":5},9]
[null,"1501-től 2000-ig",null,null,"4+0",{"$nulls":5},6.6]
[{"$nulls":4},"4+4",{"$nulls":5},8.1]
[null,"50-től 200-ig","350 g/m2 műnyomó","90*50 mm","4+0","2 oldalon matt fóliázva, vágva",{"$nulls":4},67]
[{"$nulls":4},"4+4",{"$nulls":5},70]
[null,"201-től 500-ig",null,null,"4+0",{"$nulls":5},24]
[{"$nulls":4},"4+4",{"$nulls":5},26]
[null,"501-től 1000-ig",null,null,"4+0",{"$nulls":5},13.5,null,null,"db * függetlenül attól, hogy hányféle névjegykártya gyártódik egyszerre"]
[{"$nulls":4},"4+4",{"$nulls":5},15.4]
[null,"1001-től 1500-ig",null,null,"4+0",{"$nulls":5},11.6]
[{"$nulls":4},"4+4",{"$nulls":5},13.2]
[null,"1501-től 2000-ig",null,null,"4+0",null," ",null,null,null,10.9]
[{"$nulls":4},"4+4",{"$nulls":5},12.3]
[null,"50-től 200-ig","250 g/m2 rives tradition","90*50 mm (ofszet nyomtatással)","2+0","vágva",{"$nulls":4},283]
[{"$nulls":4},"2+2",{"$nulls":5},320]
[null,"201-től 500-ig",null,null,"2+0",{"$nulls":5},76,null,null,"db * függetlenül attól, hogy hányféle névjegykártya gyártódik egyszerre"]
[{"$nulls":4},"2+2",{"$nulls":5},85]
[null,"501-től 1000-ig",null,null,"2+0",{"$nulls":5},34]
[{"$nulls":4},"2+2",{"$nulls":5},37]
[null,"1001-től 1500-ig",null,null,"2+0",{"$nulls":5},19]
[{"$nulls":4},"2+2",{"$nulls":5},21]
[null,"1501-től 2000-ig",null,null,"2+0",{"$nulls":5},14.6]
[{"$nulls":4},"2+2",{"$nulls":5},15.6]
[{"$nulls":10},{"$f":"SUM(K701:K730)","v":1364.4999999999998},{"$f":"SUM(L701)","v":1000},{"$f":"SUM(M701)","v":1000}]
[null,"mennyiség (db)","papírminőség","méret","szín","konfekcionálás","fül",null,null,null,"Nyomdai kivitelezés díja (nettó Ft/db)","Nyomdai előkészítés díja (ppt vagy egyéb nem nyomdai kompatibilis grafikai anyag esetén (nettó Ft)","Egyszerű gafikai tervezés, szerkesztés díja (1 komplett tervvariáció) (nettó Ft)"]
["Papírtáska","50-től 100-ig","200 g/m2 műnyomó","250*340*110 mm","4+0","egy oldal fényes fólia, stancolva, beigelve, összeállítva","standard",null,null,null,1095,1000,4000]
[null,"101-től 300-ig",{"$nulls":8},672]
[null,"301-től 500-ig",{"$nulls":8},402]
[null,"501-től 800-ig",{"$nulls":8},352]
[null,"801-től 1000-ig",{"$nulls":8},324]
[null,"50-től 100-ig","80 g barna nátronpapír","250*320*120 mm","2+0","_____","sodort füllel",null,null,null,1007]
[null,"101-től 300-ig",{"$nulls":8},522]
[null,"301-től 500-ig",{"$nulls":8},256]
[null,"501-től 800-ig",{"$nulls":8},220]
[null,"801-től 1000-ig",{"$nulls":8},182]
[{"$nulls":10},{"$f":"SUM(K733:K742)","v":5032},{"$f":"SUM(L733)","v":1000},{"$f":"SUM(M733)","v":4000}]
[null,"mennyiség (db)","papírminőség","méret","szín","terjedelem","kötészet",null,null,null,"Nyomdai kivitelezés díja (nettó Ft/össz. db)","Nyomdai előkészítés díja (ppt vagy egyéb nem nyomdai kompatibilis grafikai anyag esetén (nettó Ft)","Egyszerű gafikai tervezés, szerkesztés díja (1 komplett tervvariáció) (nettó Ft)"]
["Jegyzettömb",50,"80 g/m2 ofszet+300 g fehér karton","A4","2+0","20 lap+hátlap","enyvezve",null,null,null,19100,2000,5000]
[{"$nulls":5},"30 lap+hátlap","enyvezve",null,null,null,19700]
[{"$nulls":4},"4+0","20 lap+hátlap","enyvezve",null,null,null,19600]
[{"$nulls":5},"30 lap+hátlap","enyvezve",null,null,null,20000]
[null,null,null,"A/5","2+0","20 lap+hátlap","enyvezve",null,null,null,18000]
[{"$nulls":5},"30 lap+hátlap","enyvezve",null,null,null,18400]
[{"$nulls":4},"4+0","20 lap+hátlap","enyvezve",null,null,null,18700]
[{"$nulls":5},"30 lap+hátlap","enyvezve",null,null,null,19050]
[null,100,"80 g/m2 ofszet+300 g fehér karton","A4","2+0","20 lap+hátlap","enyvezve",null,null,null,21000]
[{"$nulls":5},"30 lap+hátlap","enyvezve",null,null,null,24280]
[{"$nulls":4},"4+0","20 lap+hátlap","enyvezve",null,null,null,22700]
[{"$nulls":5},"30 lap+hátlap","enyvezve",null,null,null,25900]
[null,null,null,"A/5","2+0","20 lap+hátlap","enyvezve",null,null,null,18950]
[{"$nulls":5},"30 lap+hátlap","enyvezve",null,null,null,19700]
[{"$nulls":4},"4+0","20 lap+hátlap","enyvezve",null,null,null,19670]
[{"$nulls":5},"30 lap+hátlap","enyvezve",null,null,null,21000]
[null,300,"80 g/m2 ofszet+300 g fehér karton","A4","2+0","20 lap+hátlap","enyvezve",null,null,null,37800]
[{"$nulls":5},"30 lap+hátlap","enyvezve",null,null,null,52680]
[{"$nulls":4},"4+0","20 lap+hátlap","enyvezve",null,null,null,39900]
[{"$nulls":5},"30 lap+hátlap","enyvezve",null,null,null,51000]
[null,null,null,"A/5","2+0","20 lap+hátlap","enyvezve",null,null,null,27000]
[{"$nulls":5},"30 lap+hátlap","enyvezve",null,null,null,36420]
[{"$nulls":4},"4+0","20 lap+hátlap","enyvezve",null,null,null,29100]
[{"$nulls":5},"30 lap+hátlap","enyvezve",null,null,null,36410]
[null,500,"80 g/m2 ofszet+300 g fehér karton","A4","2+0","20 lap+hátlap","enyvezve",null,null,null,55000]
[{"$nulls":5},"30 lap+hátlap","enyvezve",null,null,null,70000]
[{"$nulls":4},"4+0","20 lap+hátlap","enyvezve",null,null,null,54650]
[{"$nulls":5},"30 lap+hátlap","enyvezve",null,null,null,72500]
[null,null,null,"A/5","2+0","20 lap+hátlap","enyvezve",null,null,null,36100]
[{"$nulls":5},"30 lap+hátlap","enyvezve",null,null,null,42500]
[{"$nulls":4},"4+0","20 lap+hátlap","enyvezve",null,null,null,36750]
[{"$nulls":5},"30 lap+hátlap","enyvezve",null,null,null,45000]
[null,1000,"80 g/m2 ofszet+300 g fehér karton","A4","2+0","20 lap+hátlap","enyvezve",null,null,null,94000]
[{"$nulls":5},"30 lap+hátlap","enyvezve",null,null,null,126000]
[{"$nulls":4},"4+0","20 lap+hátlap","enyvezve",null,null,null,91700]
[{"$nulls":5},"30 lap+hátlap","enyvezve",null,null,null,132000]
[null,null,null,"A/5","2+0","20 lap+hátlap","enyvezve",null,null,null,56700]
[{"$nulls":5},"30 lap+hátlap","enyvezve",null,null,null,71400]
[{"$nulls":4},"4+0","20 lap+hátlap","enyvezve",null,null,null,60000]
[{"$nulls":5},"30 lap+hátlap","enyvezve",null,null,null,74000]
[{"$nulls":10},{"$f":"SUM(K745:K784)","v":1754360},{"$f":"L745","v":2000},{"$f":"M745","v":5000}]
[null,"mennyiség (db)","papírminőség","méret","szín","kivitel","kötészet",null,null,null,"Nyomdai kivitelezés díja (nettó Ft/db)","Nyomdai előkészítés díja (ppt vagy egyéb nem nyomdai kompatibilis grafikai anyag esetén (nettó Ft)","szerkesztés meglévő arculat alapján nevenként (nettó Ft)"]
["Kitűző","50-től 100-ig","250 g/m2 matt karton","80*80 mm","4+0","hátoldalt középen öntapadós csipesz biztosítótűvel felragasztva","vágva",null,null,null,172,1000,500]
[null,"101-től 200-ig",{"$nulls":8},126]
[null,"201-től 500-ig",{"$nulls":8},105]
[{"$nulls":10},{"$f":"SUM(K787:K789)","v":403},{"$f":"SUM(L787)","v":1000},{"$f":"SUM(M787)","v":500}]
[null,"mennyiség (db)","papírminőség","méret","szín",{"$nulls":5},"Nyomdai kivitelezés díja (nettó Ft/db)","Nyomdai előkészítés díja (ppt vagy egyéb nem nyomdai kompatibilis grafikai anyag esetén (nettó Ft)","Egyszerű gafikai tervezés, szerkesztés díja (pályázati arculat alapján 1 komplett tervvariáció) (nettó Ft)","Grafikai tervezés, szerkesztés díja (egyéb arculat alapján 3 komplett tervvariáció) (nettó Ft)"]
["Oklevél","5-től 50-ig","300 g/m2 műnyomó","A4","4+0",{"$nulls":5},518,1000,2000,2000]
[null,"51-től 200-ig",{"$nulls":8},102]
[null,"201-től 500-ig",{"$nulls":8},61]
[null,"5-től 50-ig","250 g Rives tradition ","A4","4+0",{"$nulls":5},692]
[null,"51-től 200-ig",{"$nulls":8},174]
[null,"201-től 500-ig",{"$nulls":8},126]
[{"$nulls":10},{"$f":"SUM(K792:K797)","v":1673},{"$f":"SUM(L792)","v":1000},{"$f":"SUM(M792)","v":2000},{"$f":"SUM(N792)","v":2000}]
[null,"mennyiség (db)","papírminőség","méret","szín","kivitel",{"$nulls":4},"Nyomdai kivitelezés díja (nettó Ft/db)","Nyomdai előkészítés díja (ppt vagy egyéb nem nyomdai kompatibilis grafikai anyag esetén (nettó Ft)","Minimális szöveg szerkesztés, tördelés díja (nettó Ft)"]
["Személyi iratgyűjtő tasak","50-től 200-ig","190 g/m2 fehér karton","Kiterített méret: 45*31 cm","elülső oldal 1 (fekete) színnel nyomva","egyszer hajtva, 3 oldalon (alul, felül és a hajtott oldalon) 3 cm széles, kék színű „szövet szerű” csíkkal ragasztva",{"$nulls":4},450,1500,4500]
[null,"201-től 500-ig",{"$nulls":8},340]
[null,"501-től 1000-ig",{"$nulls":8},320]
[{"$nulls":10},{"$f":"SUM(K800:K802)","v":1110},{"$f":"SUM(L800)","v":1500},{"$f":"SUM(M800)","v":4500}]
[null,"mennyiség (db)","papírminőség","méret","szín",{"$nulls":5},"Nyomdai kivitelezés díja (nettó Ft/db)","Nyomdai előkészítés díja (ppt vagy egyéb nem nyomdai kompatibilis grafikai anyag esetén (nettó Ft)","Egyszerű gafikai tervezés, szerkesztés díja (pályázati arculat alapján 1 komplett tervvariáció) (nettó Ft)","Gafikai tervezés, szerkesztés díja (egyéb arculat alapján 3 komplett tervvariáció) (nettó Ft)"]
["Szórólap","50-200","90 g/m2 ofszet","A4","4+0",{"$nulls":5},81,4000,8000,12000]
[null,null,null,"A4","4+4",{"$nulls":5},89]
[null,null,null,"A5","4+0",{"$nulls":5},62]
[null,null,null,"A5","4+4",{"$nulls":5},67]
[null,null,"130 g/m2 matt műnyomó","A4","4+0",{"$nulls":5},82]
[null,null,null,"A4","4+4",{"$nulls":5},90]
[null,null,null,"A5","4+0",{"$nulls":5},63]
[null,null,null,"A5","4+4",{"$nulls":5},67.099999999999994]
[null,"201-500","90 g/m2 ofszet","A4","4+0",{"$nulls":5},50]
[null,null,null,"A4","4+4",{"$nulls":5},58]
[null,null,null,"A5","4+0",{"$nulls":5},31]
[null,null,null,"A5","4+4",{"$nulls":5},35]
[null,null,"130 g/m2 matt műnyomó","A4","4+0",{"$nulls":5},51]
[null,null,null,"A4","4+4",{"$nulls":5},59]
[null,null,null,"A5","4+0",{"$nulls":5},31]
[null,null,null,"A5","4+4",{"$nulls":5},35]
[null,"501-1000","90 g/m2 ofszet","A4","4+0",{"$nulls":5},31]
[null,null,null,"A4","4+4",{"$nulls":5},35]
[null,null,null,"A5","4+0",{"$nulls":5},24]
[null,null,null,"A5","4+4",{"$nulls":5},28]
[null,null,"130 g/m2 matt műnyomó","A4","4+0",{"$nulls":5},33]
[null,null,null,"A4","4+4",{"$nulls":5},37]
[null,null,null,"A5","4+0",{"$nulls":5},25]
[null,null,null,"A5","4+4",{"$nulls":5},29]
[{"$nulls":10},{"$f":"SUM(K805:K828)","v":1193.0999999999999},{"$f":"SUM(L805)","v":4000},{"$f":"SUM(M805)","v":8000},{"$f":"SUM(N805)","v":12000}]
[null,"mennyiség (db)","papírminőség","méret","szín","terjedelem","kötészet",null,null,null,"Nyomdai kivitelezés díja (nettó Ft/össz. db)","Nyomdai előkészítés díja (ppt vagy egyéb nem nyomdai kompatibilis grafikai anyag esetén (nettó Ft)","Egyszerű gafikai tervezés, szerkesztés díja (1 komplett tervvariáció) (nettó Ft)"]
["Fogászati karton",1000,"170 g/m2 ofszet","A4","1+1 fekete","2 oldal","vágva",null,null,null,11100,2000,3000]
[null,5000,{"$nulls":8},44500]
[null,9000,{"$nulls":8},74700]
[{"$nulls":10},{"$f":"SUM(K831:K833)","v":130300},{"$f":"SUM(L831)","v":2000},{"$f":"SUM(M831)","v":3000}]
[null,"mennyiség (db)","papírminőség","méret","szín","terjedelem","kötészet",null,null,null,"Nyomdai kivitelezés díja (nettó Ft/össz. db)","Nyomdai előkészítés díja (ppt vagy egyéb nem nyomdai kompatibilis grafikai anyag esetén (nettó Ft)","Egyszerű gafikai tervezés, szerkesztés díja (1 komplett tervvariáció) (nettó Ft)"]
["Paradontológiai karton (1), Onkológiai kórlap",500,"170 g/m2 ofszet","A4","1+1 fekete","4 oldal","vágva",null,null,null,13000,2000,3000]
[null,1000,{"$nulls":8},21000]
[null,1500,{"$nulls":8},29400]
[{"$nulls":10},{"$f":"SUM(K836:K838)","v":63400},{"$f":"SUM(L836)","v":2000},{"$f":"SUM(M836)","v":3000}]
[null,"mennyiség (db)","papírminőség","méret","szín","terjedelem","kötészet",null,null,null,"Nyomdai kivitelezés díja (nettó Ft/össz. db)","Nyomdai előkészítés díja (ppt vagy egyéb nem nyomdai kompatibilis grafikai anyag esetén (nettó Ft)","Egyszerű gafikai tervezés, szerkesztés díja (1 komplett tervvariáció) (nettó Ft)"]
["Paradontológiai karton (2)",500,"170 g/m2 ofszet","A4","1+0 fekete","2 oldal","vágva",null,null,null,6000,2000,3000]
[null,1000,{"$nulls":8},10000]
[null,2000,{"$nulls":8},18000]
[{"$nulls":10},{"$f":"SUM(K841:K843)","v":34000},{"$f":"SUM(L841)","v":2000},{"$f":"SUM(M841)","v":3000}]
[null,"mennyiség (db)","papírminőség","méret","szín","terjedelem","kötészet",null,null,null,"Nyomdai kivitelezés díja (nettó Ft/össz. db)","Nyomdai előkészítés díja (ppt vagy egyéb nem nyomdai kompatibilis grafikai anyag esetén (nettó Ft)","Egyszerű gafikai tervezés, szerkesztés díja (1 komplett tervvariáció) (nettó Ft)"]
["Paradontológiai karton (3)",500,"170 g/m2 famentes ofszet","A4","1+0 fekete","1 oldal","vágva",null,null,null,6000,2000,3000]
[null,1000,{"$nulls":8},10000]
[null,2000,{"$nulls":8},18000]
[{"$nulls":10},{"$f":"SUM(K846:K848)","v":34000},{"$f":"SUM(L846)","v":2000},{"$f":"SUM(M846)","v":3000}]
[null,"mennyiség (db)","papírminőség","méret","szín","terjedelem","kötészet",null,null,null,"Nyomdai kivitelezés díja (nettó Ft/össz. db)","Nyomdai előkészítés díja (ppt vagy egyéb nem nyomdai kompatibilis grafikai anyag esetén (nettó Ft)","Egyszerű gafikai tervezés, szerkesztés díja (1 komplett tervvariáció) (nettó Ft)"]
["Fogászati törzslap",500,"170 g/m2 ofszet","240*210 mm","1+1 fekete","2 oldal","vágva",null,null,null,7000,2000,3000]
[null,1000,{"$nulls":8},11100]
[null,1500,{"$nulls":8},15300]
[null,2000,{"$nulls":8},19400]
[null,2500,{"$nulls":8},23500]
[{"$nulls":10},{"$f":"SUM(K851:K855)","v":76300},{"$f":"SUM(L851)","v":2000},{"$f":"SUM(M851)","v":3000}]
[null,"mennyiség (db)","papírminőség","méret","szín","terjedelem","kötészet",null,null,null,"Nyomdai kivitelezés díja (nettó Ft/össz. db)","Nyomdai előkészítés díja (ppt vagy egyéb nem nyomdai kompatibilis grafikai anyag esetén (nettó Ft)","Egyszerű gafikai tervezés, szerkesztés díja (1 komplett tervvariáció) (nettó Ft)"]
["Leckefüzet (1)",50,"170 g/m2 ofszet","210*148 mm","1+0 fekete","2 oldal","vágva",null,null,null,1950,2000,3000]
[null,100,{"$nulls":8},2130]
[null,150,{"$nulls":8},2355]
[{"$nulls":10},{"$f":"SUM(K858:K860)","v":6435},{"$f":"SUM(L858)","v":2000},{"$f":"SUM(M858)","v":3000}]
[null,"mennyiség (db)","papírminőség","méret","szín","terjedelem","kötészet",null,null,null,"Nyomdai kivitelezés díja (nettó Ft/össz. db)","Nyomdai előkészítés díja (ppt vagy egyéb nem nyomdai kompatibilis grafikai anyag esetén (nettó Ft)","Egyszerű gafikai tervezés, szerkesztés díja (1 komplett tervvariáció) (nettó Ft)"]
["Leckefüzet (2)",50,"Borító 170 g/m2 ofszet                Belív 70 g/m2 ofszet","210*148 mm","Borító 1+0 fekete Belív 1+1 fekete","8 oldal belív                    + 4 oldal borító","irkafűzés",null,null,null,4965,2000,3000]
[null,100,{"$nulls":8},6560]
[null,150,{"$nulls":8},8370]
[{"$nulls":10},{"$f":"SUM(K863:K865)","v":19895},{"$f":"SUM(L863)","v":2000},{"$f":"SUM(M863)","v":3000}]
[null,"mennyiség (db)","papírminőség","méret","szín","terjedelem","kötészet",null,null,null,"Nyomdai kivitelezés díja (nettó Ft/össz. db)","Nyomdai előkészítés díja (ppt vagy egyéb nem nyomdai kompatibilis grafikai anyag esetén (nettó Ft)","Egyszerű gafikai tervezés, szerkesztés díja (1 komplett tervvariáció) (nettó Ft)"]
["Leckefüzet (3)",50,"Borító 170 g/m2 ofszet                Belív 70 g/m2 ofszet","210*148 mm","Borító 1+0 fekete Belív 1+1 fekete","12 oldal belív                    + 4 oldal borító","irkafűzés",null,null,null,5265,2000,3000]
[null,100,{"$nulls":8},7120]
[null,150,{"$nulls":8},9330]
[{"$nulls":10},{"$f":"SUM(K868:K870)","v":21715},{"$f":"SUM(L868)","v":2000},{"$f":"SUM(M868)","v":3000}]
[null,"mennyiség (db)","papírminőség","méret","szín","terjedelem","kötészet",null,null,null,"Nyomdai kivitelezés díja (nettó Ft/össz. db)","Nyomdai előkészítés díja (ppt vagy egyéb nem nyomdai kompatibilis grafikai anyag esetén (nettó Ft)","Egyszerű gafikai tervezés, szerkesztés díja (1 komplett tervvariáció) (nettó Ft)"]
["Leckefüzet (4)",50,"Borító 170 g/m2 ofszet                Belív 70 g/m2 ofszet","210*148 mm","Borító 1+0 fekete Belív 1+1 fekete","16 oldal belív                    + 4 oldal borító","irkafűzés",null,null,null,5550,2000,3000]
[null,100,{"$nulls":8},7670]
[null,150,{"$nulls":8},9975]
[{"$nulls":10},{"$f":"SUM(K873:K875)","v":23195},{"$f":"SUM(L873)","v":2000},{"$f":"SUM(M873)","v":3000}]
[null,"mennyiség (db)","papírminőség","méret","szín","terjedelem","kötészet",null,null,null,"Nyomdai kivitelezés díja (nettó Ft/össz. db)","Nyomdai előkészítés díja (ppt vagy egyéb nem nyomdai kompatibilis grafikai anyag esetén (nettó Ft)","Egyszerű gafikai tervezés, szerkesztés díja (1 komplett tervvariáció) (nettó Ft)"]
["Leckefüzet (5)",50,"Borító 170 g/m2 ofszet                Belív 70 g/m2 ofszet","210*148 mm","Borító 1+0 fekete Belív 1+1 fekete","32 oldal belív                    + 4 oldal borító","irkafűzés",null,null,null,6720,2000,3000]
[null,100,{"$nulls":8},9880]
[null,150,{"$nulls":8},13185]
[{"$nulls":10},{"$f":"SUM(K878:K880)","v":29785},{"$f":"SUM(L878)","v":2000},{"$f":"SUM(M878)","v":3000}]
[null,"mennyiség (db)","papírminőség","méret","szín","terjedelem","kötészet",null,null,null,"Nyomdai kivitelezés díja (nettó Ft/össz. db)","Nyomdai előkészítés díja (ppt vagy egyéb nem nyomdai kompatibilis grafikai anyag esetén (nettó Ft)","Egyszerű gafikai tervezés, szerkesztés díja (1 komplett tervvariáció) (nettó Ft)"]
["Leckefüzet (6)",50,"Borító 170 g/m2 ofszet                Belív 70 g/m2 ofszet","210*148 mm","Borító 1+0 fekete Belív 1+1 fekete","36 oldal belív                    + 4 oldal borító","irkafűzés",null,null,null,7020,2000,3000]
[null,100,{"$nulls":8},10430]
[null,150,{"$nulls":8},13980]
[{"$nulls":10},{"$f":"SUM(K883:K885)","v":31430},{"$f":"SUM(L883)","v":2000},{"$f":"SUM(M883)","v":3000}]
[null,"mennyiség (db)","papírminőség","méret","szín","terjedelem","kötészet",null,null,null,"Nyomdai kivitelezés díja (nettó Ft/össz. db)","Nyomdai előkészítés díja (ppt vagy egyéb nem nyomdai kompatibilis grafikai anyag esetén (nettó Ft)","Egyszerű gafikai tervezés, szerkesztés díja (1 komplett tervvariáció) (nettó Ft)"," "]
["Leckefüzet (7)",50,"Borító 170 g/m2 ofszet                Belív 70 g/m2 ofszet","210*148 mm","Borító 1+1 fekete Belív 1+1 fekete","40 oldal belív                    + 4 oldal borító","irkafűzés",null,null,null,7305,2000,3000]
[null,100,{"$nulls":8},10970]
[null,300,{"$nulls":8},25680]
[{"$nulls":10},{"$f":"SUM(K888:K890)","v":43955},{"$f":"SUM(L888)","v":2000},{"$f":"SUM(M888)","v":3000}]
[null,"mennyiség (db)","papírminőség","méret","szín","terjedelem","kötészet",null,null,null,"Nyomdai kivitelezés díja (nettó Ft/össz. db)","Nyomdai előkészítés díja (ppt vagy egyéb nem nyomdai kompatibilis grafikai anyag esetén (nettó Ft)","Egyszerű gafikai tervezés, szerkesztés díja (1 komplett tervvariáció) (nettó Ft)"]
["Berendelő lap",250,"170 g/m2 ofszet","85*150 mm","1+1 fekete","2 oldal","vágva",null,null,null,2650,2000,3000]
[null,500,{"$nulls":8},3100]
[null,750,{"$nulls":8},3525]
[{"$nulls":10},{"$f":"SUM(K893:K895)","v":9275},{"$f":"SUM(L893)","v":2000},{"$f":"SUM(M893)","v":3000}]
[null,"mennyiség (db)","papírminőség","méret","szín","terjedelem","kötészet",null,null,null,"Nyomdai kivitelezés díja (nettó Ft/össz. db)","Nyomdai előkészítés díja (ppt vagy egyéb nem nyomdai kompatibilis grafikai anyag esetén (nettó Ft)","Egyszerű gafikai tervezés, szerkesztés díja (1 komplett tervvariáció) (nettó Ft)"]
["Orvosi igazolás",250,"170 g/m2 ofszet","105*150 mm","1+0 fekete","2 oldal","vágva",null,null,null,3250,2000,3000]
[null,500,{"$nulls":8},4000]
[null,750,{"$nulls":8},4875]
[{"$nulls":10},{"$f":"SUM(K898:K900)","v":12125},{"$f":"SUM(L898)","v":2000},{"$f":"SUM(M898)","v":3000}]
[null,"mennyiség (db)","papírminőség","méret","szín","terjedelem","kötészet",null,null,null,"Nyomdai kivitelezés díja (nettó Ft/össz. db)","Nyomdai előkészítés díja (ppt vagy egyéb nem nyomdai kompatibilis grafikai anyag esetén (nettó Ft)","Egyszerű gafikai tervezés, szerkesztés díja (1 komplett tervvariáció) (nettó Ft)"]
["Fogszabályzó rendelő lap",100,"170 g/m2 ofszet","A5","1+0 fekete","2 oldal","vágva",null,null,null,3220,2000,3000]
[null,250,{"$nulls":8},3825]
[null,500,{"$nulls":8},4750]
[{"$nulls":10},{"$f":"SUM(K903:K905)","v":11795},{"$f":"SUM(L903)","v":2000},{"$f":"SUM(M903)","v":3000}]
[null,"mennyiség (db)","papírminőség","méret","szín","terjedelem","kötészet",null,null,null,"Nyomdai kivitelezés díja (nettó Ft/össz. db)","Nyomdai előkészítés díja (ppt vagy egyéb nem nyomdai kompatibilis grafikai anyag esetén (nettó Ft)","Egyszerű gafikai tervezés, szerkesztés díja (1 komplett tervvariáció) (nettó Ft)"]
["Lenyomat tartó doboz",250,"350 g karton","315*253 mm","1+0 fekete","2 oldal","vágva, stancolva",null,null,null,21750,2000,3000]
[null,500,{"$nulls":8},26500]
[null,750,{"$nulls":8},33750]
[{"$nulls":10},{"$f":"SUM(K908:K910)","v":82000},{"$f":"SUM(L908)","v":2000},{"$f":"SUM(M908)","v":3000}]
[null,"mennyiség (db)","papírminőség","méret","szín","terjedelem","kötészet",null,null,null,"Nyomdai kivitelezés díja (nettó Ft/össz. db)","Nyomdai előkészítés díja (ppt vagy egyéb nem nyomdai kompatibilis grafikai anyag esetén (nettó Ft)","Egyszerű gafikai tervezés, szerkesztés díja (1 komplett tervvariáció) (nettó Ft)"]
["Fogszabályozási kezelőkönyv",250,"Borító 170 g/m2 ofszet                Belív 70 g/m2 ofszet","A4","Borító 1+0 fekete Belív 1+0 fekete","20 oldal belív                  + 4 oldal borító","tűzve, sapkázva vászon csíkkal",null,null,null,59000,2000,8000]
[null,300,{"$nulls":8},65400]
[null,500,{"$nulls":8},102500]
[null,1000,{"$nulls":8},190000]
[null,250,"Borító 170 g/m2 ofszet                Belív 70 g/m2 ofszet","A4","Borító 1+0 fekete Belív 1+0 fekete","20 oldal belív                  + 4 oldal borító","tűzve, , hozott gentorem, irányított behúzással behúzve, sapkázva vászon csíkkal",null,null,null,63500]
[null,300,{"$nulls":8},71400]
[null,500,{"$nulls":8},111500]
[null,1000,{"$nulls":8},210000]
[{"$nulls":10},{"$f":"SUM(K913:K920)","v":873300},{"$f":"SUM(L913)","v":2000},{"$f":"SUM(M913)","v":8000}]
[]
[]
["Minden nyomdai termék esetében a forrás anyag, a monitor optimalizált pdf, és a nyomdakész pdf a Megrendelő tulajdonát képezi, a hozzá kapcsolódó szerzői jogokkal együtt."]
["Teljesítésigazolás kiállításának a feltétele a Megrendelő részéről: A legyártott mennyiségnek és minőségnek, valamint határidőnek való megfelelés. A gyártott nyomdai termékek forrás anyagának/a monitor optimalizált pdf/nyomdakész pdf átadása fizikai adathordozón."]
[]
[]
[]
[{"$nulls":5},"Oszlopok mindösszesen: ",{"$nulls":4},{"$f":"K27+K35+K51+K55+K379+K541+K615+K647+K657+K687+K699+K731+K743+K785+K790+K798+K803+K829+K834+K839+K844+K849+K856+K861+K866+K871+K876+K881+K886+K891+K896+K901+K906+K911+K921","v":107081519.39999999},{"$f":"L27+L35+L51+L55+L379+L541+L615+L647+L657+L687+L699+L731+L743+L785+L790+L798+L803+L829+L834+L839+L844+L849+L856+L861+L866+L871+L876+L881+L886+L891+L896+L901+L906+L911+L921","v":178000},{"$f":"M27+M35+M51+M55+M379+M541+M615+M647+M657+M687+M699+M731+M743+M785+M790+M798+M803+M829+M834+M839+M844+M849+M856+M861+M866+M871+M876+M881+M886+M891+M896+M901+M906+M911+M921","v":197500},{"$f":"N27+N35+N379+N541+N615+N647+N657+N687+N699+N798+N829","v":281000},{"$f":"SUM(O379,O615,O541,O647)","v":10522760},{"$f":"SUM(P379,P615,P541,P647)","v":11836932}]
[]
[{"$nulls":5},"Összehasonlítás érdekében kalkulált nettó ajánlati ár (K+L+M+N+O+P)",{"$nulls":4},{"$f":"SUM(K929,L929,M929,N929,O929,P929)","v":130097711.39999999}]

{"sheet":"2. részajánlati kör","index":1,"n_rows":276,"n_cols":14,"rows_kept":276,"cut":false,"hidden":false,"merged":[[269,5,269,7],[270,5,270,8],[272,0,272,9],[273,0,273,11],[275,0,275,7],[244,0,245,0],[247,0,248,0],[250,0,251,0],[253,0,254,0],[256,0,257,0],[259,0,260,0],[225,10,230,10],[225,11,230,11],[232,0,233,0],[235,0,236,0],[238,0,239,0],[241,0,242,0],[225,0,230,0],[225,1,230,1],[225,2,230,2],[225,4,230,4],[225,5,230,5],[225,9,230,9],[211,2,222,2],[211,3,216,3],[211,4,213,4],[214,4,216,4],[217,3,222,3],[217,4,219,4],[220,4,222,4],[187,10,222,10],[190,4,192,4],[193,3,198,3],[193,4,195,4],[196,4,198,4],[199,1,210,1],[199,2,210,2],[199,3,204,3],[199,4,201,4],[202,4,204,4],[187,0,222,0],[187,1,198,1],[187,2,198,2],[187,3,192,3],[187,4,189,4],[187,9,222,9],[205,3,210,3],[205,4,207,4],[208,4,210,4],[211,1,222,1],[173,10,174,10],[175,1,178,1],[175,7,178,7],[175,9,178,9],[177,10,178,10],[181,0,184,0],[166,1,168,1],[166,7,168,7],[166,9,168,9],[171,0,178,0],[171,1,174,1],[171,7,174,7],[171,9,174,9],[160,1,162,1],[160,7,162,7],[160,9,162,9],[163,1,165,1],[163,7,165,7],[163,9,165,9],[151,0,168,0],[151,1,153,1],[151,7,153,7],[151,9,153,9],[154,1,156,1],[154,7,156,7],[154,9,156,9],[157,1,159,1],[157,7,159,7],[157,9,159,9],[127,7,137,7],[131,4,137,4],[138,1,148,1],[138,2,148,2],[138,3,148,3],[138,4,141,4],[138,6,148,6],[138,7,148,7],[142,4,148,4],[116,7,126,7],[116,9,148,9],[116,10,148,10],[116,11,148,11],[120,4,126,4],[127,1,137,1],[127,2,137,2],[127,3,137,3],[127,4,130,4],[127,6,137,6],[116,0,148,0],[116,1,126,1],[116,2,126,2],[116,3,126,3],[116,4,119,4],[116,6,126,6],[104,9,113,9],[104,10,113,10],[104,11,113,11],[109,1,113,1],[109,2,113,2],[109,3,113,3],[96,12,98,12],[96,13,98,13],[99,5,101,5],[99,12,101,12],[99,13,101,13],[104,0,113,0],[104,1,108,1],[104,2,108,2],[104,3,108,3],[104,6,113,6],[87,13,89,13],[90,3,95,3],[90,4,95,4],[90,5,92,5],[90,12,92,12],[90,13,92,13],[93,5,95,5],[93,12,95,12],[93,13,95,13],[78,13,80,13],[81,5,83,5],[81,12,83,12],[81,13,83,13],[84,3,89,3],[84,4,89,4],[84,5,86,5],[84,12,86,12],[84,13,86,13],[87,5,89,5],[78,1,101,1],[78,2,101,2],[78,3,83,3],[78,4,83,4],[78,5,80,5],[78,12,80,12],[87,12,89,12],[96,3,101,3],[96,4,101,4],[96,5,98,5],[72,3,77,3],[72,4,77,4],[72,5,74,5],[72,12,74,12],[72,13,74,13],[75,5,77,5],[75,12,77,12],[75,13,77,13],[66,3,71,3],[66,4,71,4],[66,5,68,5],[66,12,68,12],[66,13,68,13],[69,5,71,5],[69,12,71,12],[69,13,71,13],[60,4,65,4],[60,5,62,5],[60,12,62,12],[60,13,62,13],[63,5,65,5],[63,12,65,12],[63,13,65,13],[54,2,77,2],[54,3,59,3],[54,4,59,4],[54,5,56,5],[54,12,56,12],[54,13,56,13],[57,5,59,5],[57,12,59,12],[57,13,59,13],[60,3,65,3],[45,12,47,12],[45,13,47,13],[48,3,53,3],[48,4,53,4],[48,5,50,5],[48,12,50,12],[48,13,50,13],[51,5,53,5],[51,12,53,12],[51,13,53,13],[36,13,38,13],[39,5,41,5],[39,12,41,12],[39,13,41,13],[42,3,47,3],[42,4,47,4],[42,5,44,5],[42,12,44,12],[42,13,44,13],[45,5,47,5],[30,9,101,9],[30,10,101,10],[30,11,101,11],[30,12,32,12],[30,13,32,13],[33,5,35,5],[33,12,35,12],[33,13,35,13],[36,5,38,5],[36,12,38,12],[26,6,27,6],[30,0,101,0],[30,1,53,1],[30,2,53,2],[30,3,35,3],[30,4,35,4],[30,5,32,5],[36,3,41,3],[36,4,41,4],[54,1,77,1],[22,9,27,9],[22,10,27,10],[22,11,27,11],[22,12,27,12],[22,13,27,13],[24,1,25,1],[24,2,25,2],[24,3,25,3],[24,5,25,5],[24,6,25,6],[21,0,27,0],[22,1,23,1],[22,2,23,2],[22,3,23,3],[22,5,23,5],[22,6,23,6],[26,1,27,1],[26,2,27,2],[26,3,27,3],[26,5,27,5],[14,9,19,9],[14,10,19,10],[14,11,19,11],[17,1,19,1],[17,2,19,2],[17,3,19,3],[17,4,19,4],[17,6,19,6],[13,0,19,0],[14,1,16,1],[14,2,16,2],[14,3,16,3],[14,4,16,4],[14,6,16,6],[8,10,11,10],[8,11,11,11],[8,12,11,12],[8,13,11,13],[10,1,11,1],[10,3,11,3],[10,5,11,5],[0,0,5,0],[1,9,5,9],[1,10,5,10],[1,11,5,11],[7,0,11,0],[8,1,9,1],[8,3,9,3],[8,5,9,5],[8,6,11,6],[8,9,11,9]]}
["Boríték","mennyiség (db)","papírminőség","méret","szín","megjegyzés",null,null,"Nyomdai kivitelezés díja (nettó Ft/össz. db)","Nyomdai előkészítés díja (ppt vagy egyéb nem nyomdai kompatibilis grafikai anyag esetén (nettó Ft)","Egyszerű gafikai tervezés, szerkesztés díja (pályázati arculat alapján 1 komplett tervvariáció) (nettó Ft)","Gafikai tervezés, szerkesztés díja (egyéb arculat alapján 3 komplett tervvariáció) (nettó Ft)"]
[null,100,"gépi feldolgozásra alkalmas, szilikonos","114*229 mm","4+0","a borítékon a nyomat nem kifutós",null,null,12500,1000,2500,2500]
[null,200,"gépi feldolgozásra alkalmas, szilikonos","114*229 mm","4+0","a borítékon a nyomat nem kifutós",null,null,12800]
[null,300,"gépi feldolgozásra alkalmas, szilikonos","114*229 mm","4+0","a borítékon a nyomat nem kifutós",null,null,13500]
[null,500,"gépi feldolgozásra alkalmas, szilikonos","114*229 mm","4+0","a borítékon a nyomat nem kifutós",null,null,15000]
[null,1000,"gépi feldolgozásra alkalmas, szilikonos","114*229 mm","4+0","a borítékon a nyomat nem kifutós",null,null,18500]
[{"$nulls":8},{"$f":"SUM(I2:I6)","v":72300},{"$f":"SUM(J2)","v":1000},{"$f":"SUM(K2)","v":2500},{"$f":"SUM(L2)","v":2500}]
["Keménytáblás kiadvány","mennyiség (db)","papírminőség","méret","szín","terjedelem","kötészet",null,"Nyomdai kivitelezés díja (nettó Ft/össz. db)","Nyomdai előkészítés díja (nem nyomdai kompatibilis grafikai anyag esetén (nettó Ft)","Egyszerű grafikai tervezés (borító + 1 oldalpár) pályázati arculat alapján 1 komplett tervvariáció díja (nettó Ft) ","Grafikai tervezés (borító + 1 oldalpár) egyéb arculat alapján 3 komplett tervvariáció díja (nettó Ft) ","Tördelés-szerkesztés egyszerű, 2 elektronikus korrektúraforduló lebonyolításával (nettó Ft/össz. oldal)","Tördelés-szerkesztés összetett, 2 elektronikus korrektúraforduló lebonyolításával (nettó Ft/össz. oldal)"]
[null,100,"Borító 135 g/m2 műnyomó             Belív 80 g/m2 ofszet                             Táblalemez 1400 g 2 mm-es Előzék 140 g/m2 ofszet","Vágott B/5 (mérettől függetlenül)","Borító 4+0               Belív 1+1 fekete Táblalemez 0+0 Előzék 0+0","160 old. Belív + 4 old. Borító + 4 old. Táblalemez + 2*4 old. Előzék","cérnafűzött, egyenes hát, borító fényes fóliázva",null,190500,8000,10000,15000,40000,45000]
[null,null,"Borító 135 g/m2 műnyomó             Belív 135 g/m2 műnyomó Táblalemez 1400 g 2 mm-es Előzék 140 g/m2 ofszet",null,"Borító 4+0              Belív 4+4 Táblalemez 0+0 Előzék 4+0",null,null,null,366000]
[null,300,"Borító 135 g/m2 műnyomó             Belív 80 g/m2 ofszet                             Táblalemez 1400 g 2 mm-es Előzék 140 g/m2 ofszet","Vágott B/5 (mérettől függetlenül)","Borító 4+0               Belív 1+1 fekete Táblalemez 0+0 Előzék 0+0","160 old. Belív + 4 old. Borító + 4 old. Táblalemez + 2*4 old. Előzék",null,null,285600]
[null,null,"Borító 135 g/m2 műnyomó             Belív 135 g/m2 műnyomó Táblalemez 1400 g 2 mm-es Előzék 140 g/m2 ofszet",null,"Borító 4+0              Belív 4+4 Táblalemez 0+0 Előzék 4+0",null,null,null,498000]
[{"$nulls":8},{"$f":"SUM(I9:I12)","v":1340100},{"$f":"SUM(J9)","v":8000},{"$f":"SUM(K9)","v":10000},{"$f":"SUM(L9)","v":15000},{"$f":"SUM(M9:M12)","v":40000},{"$f":"SUM(N9:N12)","v":45000}]
["Kiadvány (1)","mennyiség (db)","papírminőség","méret","szín","terjedelem","kötészet",null,"Nyomdai kivitelezés díja (nettó Ft/össz. db)","Nyomdai előkészítés díja (nem nyomdai kompatibilis grafikai anyag esetén (nettó Ft)","Egyszerű grafikai tervezés (borító + 1 oldalpár) pályázati arculat alapján 1 komplett tervvariáció díja (nettó Ft) ","Grafikai tervezés (borító + 1 oldalpár) egyéb arculat alapján 3 komplett tervvariáció díja (nettó Ft) ","Tördelés-szerkesztés egyszerű, 2 elektronikus korrektúraforduló lebonyolításával (nettó Ft/össz. oldal)","Tördelés-szerkesztés összetett, 2 elektronikus korrektúraforduló lebonyolításával (nettó Ft/össz. oldal)"]
[null,300,"80 g/m2 ofszet","A/4","1+1 (fekete)","12 oldal","irkafűzve",null,15330,4000,5000,15000,900,990.00000000000011]
[{"$nulls":5},"36 oldal",null,null,36750,null,null,null,3400,3740.0000000000005]
[{"$nulls":5},"56 oldal",null,null,53670,null,null,null,5400,5940.0000000000009]
[null,500,"80 g/m2 ofszet","A/4","1+1 (fekete)","12 oldal","irkafűzve",null,22300,null,null,null,900,990.00000000000011]
[{"$nulls":5},"36 oldal",null,null,55700,null,null,null,3400,3740.0000000000005]
[{"$nulls":5},"56 oldal",null,null,83650,null,null,null,5400,5940.0000000000009]
[{"$nulls":8},{"$f":"SUM(I15:I20)","v":267400},{"$f":"SUM(J15)","v":4000},{"$f":"SUM(K15)","v":5000},{"$f":"SUM(L15)","v":15000},{"$f":"SUM(M15:M20)","v":19400},{"$f":"SUM(N15:N20)","v":21340.000000000004}]
["Kiadvány (2)","mennyiség (db)","papírminőség","méret","szín","terjedelem","kötészet",null,"Nyomdai kivitelezés díja (nettó Ft/össz. db)","Nyomdai előkészítés díja (nem nyomdai kompatibilis grafikai anyag esetén (nettó Ft)","Egyszerű grafikai tervezés (borító + 1 oldalpár) pályázati arculat alapján 1 komplett tervvariáció díja (nettó Ft) ","Grafikai tervezés (borító + 1 oldalpár) egyéb arculat alapján 3 komplett tervvariáció díja (nettó Ft) ","Tördelés-szerkesztés egyszerű, 2 elektronikus korrektúraforduló lebonyolításával (nettó Ft/össz. oldal)","Tördelés-szerkesztés összetett, 2 elektronikus korrektúraforduló lebonyolításával (nettó Ft/össz. oldal)"]
[null,300,"130 g/m2 műnyomó","A4","1+1 fekete","8 oldal","irkafűzve",null,13140,4000,5000,15000,5000,6000]
[{"$nulls":4},"4+4",null,null,null,38640]
[null,500,"130 g/m2 műnyomó","A4","1+1 fekete","8 oldal","irkafűzve",null,18750]
[{"$nulls":4},"4+4",null,null,null,40900]
[null,1000,"130 g/m2 műnyomó","A4","1+1 fekete","8 oldal","irkafűzve",null,32700]
[{"$nulls":4},"4+4",null,null,null,48200]
[{"$nulls":8},{"$f":"SUM(I23:I28)","v":192330},{"$f":"SUM(J23)","v":4000},{"$f":"SUM(K23)","v":5000},{"$f":"SUM(L23)","v":15000},{"$f":"SUM(M23:M28)","v":5000},{"$f":"SUM(N23:N28)","v":6000}]
[null,"mennyiség (db)","papírminőség","méret","szín","terjedelem","konfekcionálás","kötészet","Nyomdai kivitelezés díja (nettó Ft/össz. db)","Nyomdai előkészítés díja (nem nyomdai kompatibilis grafikai anyag esetén (nettó Ft)","Egyszerű grafikai tervezés (borító + 1 oldalpár) pályázati arculat alapján 1 komplett tervvariáció díja (nettó Ft) ","Grafikai tervezés (borító + 1 oldalpár) egyéb arculat alapján 3 komplett tervvariáció díja (nettó Ft) ","Tördelés-szerkesztés egyszerű, 2 elektronikus korrektúraforduló lebonyolításával (nettó Ft/össz. oldal)","Tördelés-szerkesztés összetett, 2 elektronikus korrektúraforduló lebonyolításával (nettó Ft/össz. oldal)"]
[null,100,"Borító 300 g/m2 műnyomó\nBelív 80 g/m2 ofszet","A/4","Borító 4+4\nBelív 1+1 fekete","52 oldal belív \n+ 4 oldal borító","-","irkafűzve",34740,4000,5000,10000,10400,12480]
[{"$nulls":6},"borító fóliázva","irkafűzve",39790]
[{"$nulls":6},"borító fóliázva + UV lakk egy oldalon","irkafűzve",63300]
[{"$nulls":5},"156 oldal belív \n+ 4 oldal borító","-","ragasztókötés",75400,null,null,null,30800,36960]
[{"$nulls":6},"borító fóliázva","ragasztókötés",80900]
[{"$nulls":6},"borító fóliázva + UV lakk egy oldalon","ragasztókötés",105400]
[null,null,null,"A/4","Borító 4+4\nBelív 4+4","52 oldal belív \n+ 4 oldal borító","-","irkafűzve",98000,null,null,null,13000,15600]
[{"$nulls":6},"borító fóliázva","irkafűzve",102300]
[{"$nulls":6},"borító fóliázva + UV lakk egy oldalon","irkafűzve",121400]
[{"$nulls":5},"156 oldal belív \n+ 4 oldal borító","-","ragasztókötés",298500,null,null,null,38500,46200]
[{"$nulls":6},"borító fóliázva","ragasztókötés",304000]
[{"$nulls":6},"borító fóliázva + UV lakk egy oldalon","ragasztókötés",325000]
[null,null,null,"A/5","Borító 4+4\nBelív 1+1 fekete","52 oldal belív \n+ 4 oldal borító","-","irkafűzve",21380,null,null,null,5200,6240]
[{"$nulls":6},"borító fóliázva","irkafűzve",24130]
[{"$nulls":6},"borító fóliázva + UV lakk egy oldalon","irkafűzve",42200]
[{"$nulls":5},"156 oldal belív \n+ 4 oldal borító","-","ragasztókötés",42490,null,null,null,15400,18480]
[{"$nulls":6},"borító fóliázva","ragasztókötés",45240]
[{"$nulls":6},"borító fóliázva + UV lakk egy oldalon","ragasztókötés",75560]
[null,null,null,"A/5","Borító 4+4\nBelív 4+4","52 oldal belív \n+ 4 oldal borító","-","irkafűzve",56400,null,null,null,7800,9360]
[{"$nulls":6},"borító fóliázva","irkafűzve",59500]
[{"$nulls":6},"borító fóliázva + UV lakk egy oldalon","irkafűzve",75000]
[{"$nulls":5},"156 oldal belív \n+ 4 oldal borító","-","ragasztókötés",159000,null,null,null,23100,27720]
[{"$nulls":6},"borító fóliázva","ragasztókötés",163000]
[{"$nulls":6},"borító fóliázva + UV lakk egy oldalon","ragasztókötés",188000]
[null,300,"Borító 300 g/m2 műnyomó\nBelív 80 g/m2 ofszet","A/4","Borító 4+4\nBelív 1+1 fekete","52 oldal belív \n+ 4 oldal borító","-","irkafűzve",81990,null,null,null,10400,12480]
[{"$nulls":6},"borító fóliázva","irkafűzve",85950]
[{"$nulls":6},"borító fóliázva + UV lakk egy oldalon","irkafűzve",101880]
[{"$nulls":5},"156 oldal belív \n+ 4 oldal borító","-","ragasztókötés",178770,null,null,null,30800,36960]
[{"$nulls":6},"borító fóliázva","ragasztókötés",182040]
[{"$nulls":6},"borító fóliázva + UV lakk egy oldalon","ragasztókötés",198990]
[null,null,null,"A/4","Borító 4+4\nBelív 4+4","52 oldal belív \n+ 4 oldal borító","-","irkafűzve",240000,null,null,null,13000,15600]
[{"$nulls":6},"borító fóliázva","irkafűzve",249000]
[{"$nulls":6},"borító fóliázva + UV lakk egy oldalon","irkafűzve",267000]
[{"$nulls":5},"156 oldal belív \n+ 4 oldal borító","-","ragasztókötés",647910,null,null,null,38500,46200]
[{"$nulls":6},"borító fóliázva","ragasztókötés",653160]
[{"$nulls":6},"borító fóliázva + UV lakk egy oldalon","ragasztókötés",669990]
[null,null,null,"A/5","Borító 4+4\nBelív 1+1 fekete","52 oldal belív \n+ 4 oldal borító","-","irkafűzve",46590,null,null,null,5200,6240]
[{"$nulls":6},"borító fóliázva","irkafűzve",54330]
[{"$nulls":6},"borító fóliázva + UV lakk egy oldalon","irkafűzve",72300]
[{"$nulls":5},"156 oldal belív \n+ 4 oldal borító","-","ragasztókötés",102210,null,null,null,15400,18480]
[{"$nulls":6},"borító fóliázva","ragasztókötés",109950]
[{"$nulls":6},"borító fóliázva + UV lakk egy oldalon","ragasztókötés",128670]
[null,null,null,"A/5","Borító 4+4\nBelív 4+4","52 oldal belív \n+ 4 oldal borító","-","irkafűzve",42200,null,null,null,7800,9360]
[{"$nulls":6},"borító fóliázva","irkafűzve",139500]
[{"$nulls":6},"borító fóliázva + UV lakk egy oldalon","irkafűzve",158100]
[{"$nulls":5},"156 oldal belív \n+ 4 oldal borító","-","ragasztókötés",342210,null,null,null,23100,27720]
[{"$nulls":6},"borító fóliázva","ragasztókötés",349620]
[{"$nulls":6},"borító fóliázva + UV lakk egy oldalon","ragasztókötés",368250]
[null,500,"Borító 300 g/m2 műnyomó\nBelív 80 g/m2 ofszet","A/4","Borító 4+4\nBelív 1+1 fekete","52 oldal belív \n+ 4 oldal borító","-","irkafűzve",115400,null,null,null,10400,12480]
[{"$nulls":6},"borító fóliázva","irkafűzve",121150]
[{"$nulls":6},"borító fóliázva + UV lakk egy oldalon","irkafűzve",140900]
[{"$nulls":5},"156 oldal belív \n+ 4 oldal borító","-","ragasztókötés",264000,null,null,null,30800,36960]
[{"$nulls":6},"borító fóliázva","ragasztókötés",270000]
[{"$nulls":6},"borító fóliázva + UV lakk egy oldalon","ragasztókötés",298350]
[null,null,null,"A/4","Borító 4+4\nBelív 4+4","52 oldal belív \n+ 4 oldal borító","-","irkafűzve",264500,null,null,null,13000,15600]
[{"$nulls":6},"borító fóliázva","irkafűzve",272000]
[{"$nulls":6},"borító fóliázva + UV lakk egy oldalon","irkafűzve",293500]
[{"$nulls":5},"156 oldal belív \n+ 4 oldal borító","-","ragasztókötés",689200,null,null,null,38500,46200]
[{"$nulls":6},"borító fóliázva","ragasztókötés",697050]
[{"$nulls":6},"borító fóliázva + UV lakk egy oldalon","ragasztókötés",720150]
[null,null,null,"A/5","Borító 4+4\nBelív 1+1 fekete","52 oldal belív \n+ 4 oldal borító","-","irkafűzve",64050,null,null,null,5200,6240]
[{"$nulls":6},"borító fóliázva","irkafűzve",76450]
[{"$nulls":6},"borító fóliázva + UV lakk egy oldalon","irkafűzve",91650]
[{"$nulls":5},"156 oldal belív \n+ 4 oldal borító","-","ragasztókötés",159350,null,null,null,15400,18480]
[{"$nulls":6},"borító fóliázva","ragasztókötés",162450]
[{"$nulls":6},"borító fóliázva + UV lakk egy oldalon","ragasztókötés",128300]
[null,null,null,"A/5","Borító 4+4\nBelív 4+4","52 oldal belív \n+ 4 oldal borító","-","irkafűzve",144500,null,null,null,7800,9360]
[{"$nulls":6},"borító fóliázva","irkafűzve",159500]
[{"$nulls":6},"borító fóliázva + UV lakk egy oldalon","irkafűzve",177000]
[{"$nulls":5},"156 oldal belív \n+ 4 oldal borító","-","ragasztókötés",371250,null,null,null,23100,27720]
[{"$nulls":6},"borító fóliázva","ragasztókötés",374000]
[{"$nulls":6},"borító fóliázva + UV lakk egy oldalon","ragasztókötés",389800]
[{"$nulls":8},{"$f":"SUM(I31:I102)","v":14515740},{"$f":"SUM(J31)","v":4000},{"$f":"SUM(K31)","v":5000},{"$f":"SUM(L31)","v":10000},{"$f":"SUM(M31:M102)","v":432600},{"$f":"SUM(N31:N102)","v":519120}]
[null,"mennyiség (db)","papírminőség","méret","szín","terjedelem","kötészet",null,"Nyomdai kivitelezés díja (nettó Ft/össz. db)","Nyomdai előkészítés díja (nem nyomdai kompatibilis grafikai anyag esetén (nettó Ft)","Egyszerű grafikai tervezés (borító + 1 oldalpár) pályázati arculat alapján 1 komplett tervvariáció díja (nettó Ft) ","Grafikai tervezés (borító + 1 oldalpár) egyéb arculat alapján 3 komplett tervvariáció díja (nettó Ft) ","Tördelés-szerkesztés egyszerű, 2 elektronikus korrektúraforduló lebonyolításával (nettó Ft/össz. oldal)","Tördelés-szerkesztés összetett, 2 elektronikus korrektúraforduló lebonyolításával (nettó Ft/össz. oldal)"]
["Kiadvány(4)",300,"Borító 250 g/m2 cyclus ofszet\nbelív 80g/m2 cyclus ofszet","A5","4+4","20 oldal belív\n+ 4 oldal borító","irkafűzött",null,72420,4000,5000,15000,15000,20000]
[{"$nulls":4},"4+4","28 oldal belív\n+ 4 oldal borító",null,null,90060,null,null,null,18000,25000]
[{"$nulls":4},"4+4","36 oldal belív\n+ 4 oldal borító",null,null,103200,null,null,null,22000,30000]
[{"$nulls":4},"4+4","44 oldal belív\n+ 4 oldal borító",null,null,121800,null,null,null,26000,35000]
[{"$nulls":4},"4+4","52 oldal belív\n+ 4 oldal borító",null,null,134040,null,null,null,30000,40000]
[null,500,"Borító 250 g/m2 cyclus ofszet\nbelív 80g/m2 cyclus ofszet","A5","4+4","20 oldal belív\n+ 4 oldal borító",null,null,76750,null,null,null,15000,20000]
[{"$nulls":4},"4+4","28 oldal belív\n+ 4 oldal borító",null,null,96000,null,null,null,18000,25000]
[{"$nulls":4},"4+4","36 oldal belív\n+ 4 oldal borító",null,null,109700,null,null,null,22000,30000]
[{"$nulls":4},"4+4","44 oldal belív\n+ 4 oldal borító",null,null,129950,null,null,null,26000,35000]
[{"$nulls":4},"4+4","52 oldal belív\n+ 4 oldal borító",null,null,142700,null,null,null,30000,40000]
[{"$nulls":8},{"$f":"SUM(I105:I114)","v":1076620},{"$f":"SUM(J105)","v":4000},{"$f":"SUM(K105)","v":5000},{"$f":"SUM(L105)","v":15000},{"$f":"SUM(M105:M114)","v":222000},{"$f":"SUM(N105:N114)","v":300000}]
[null,"mennyiség (db)","papírminőség","méret","szín","terjedelem","konfekcionálás","kötészet","Nyomdai kivitelezés díja (nettó Ft/össz. db)","Nyomdai előkészítés díja (nem nyomdai kompatibilis grafikai anyag esetén (nettó Ft)","Egyszerű grafikai tervezés (borító + 1 oldalpár) pályázati arculat alapján 1 komplett tervvariáció díja (nettó Ft) ","Grafikai tervezés (borító + 1 oldalpár) egyéb arculat alapján 3 komplett tervvariáció díja (nettó Ft) ","Tördelés-szerkesztés egyszerű, 2 elektronikus korrektúraforduló lebonyolításával (nettó Ft/össz. oldal)","Tördelés-szerkesztés összetett, 2 elektronikus korrektúraforduló lebonyolításával (nettó Ft/össz. oldal)"]
["Kiadvány(5)",300,"Borító300 g/m2 műnyomó                        Belív 130 g/m2 műnyomó","Vágott B5 (pontos mérettől függetlenül)","Borító 4+4          Belív 1+1 (fekete)","Belív 12 oldal                 Borító 4 oldal","Borító matt fóliázva","irkafűzött",46800,4000,5000,15000,8000,12000]
[{"$nulls":5},"Belív 20 oldal                 Borító 4 oldal",null,null,53580,null,null,null,15000,20000]
[{"$nulls":5},"Belív 28 oldal                 Borító 4 oldal",null,null,60360,null,null,null,22000,28000]
[{"$nulls":5},"Belív 36 oldal                 Borító 4 oldal",null,null,69600,null,null,null,32000,38000]
[{"$nulls":4},"Borító 4+4          Belív 4+4","Belív 12 oldal                 Borító 4 oldal",null,null,65100,null,null,null,8000,12000]
[{"$nulls":5},"Belív 16 oldal                 Borító 4 oldal",null,null,68400,null,null,null,12000,16000]
[{"$nulls":5},"Belív 20 oldal                 Borító 4 oldal",null,null,76470,null,null,null,15000,20000]
[{"$nulls":5},"Belív 24 oldal                 Borító 4 oldal",null,null,82950,null,null,null,18000,24000]
[{"$nulls":5},"Belív 28 oldal                 Borító 4 oldal",null,null,95460,null,null,null,22000,28000]
[{"$nulls":5},"Belív 32 oldal                 Borító 4 oldal",null,null,94800,null,null,null,26000,32000]
[{"$nulls":5},"Belív 36 oldal                 Borító 4 oldal",null,null,108180,null,null,null,32000,38000]
[null,500,"Borító300 g/m2 műnyomó                        Belív 130 g/m2 műnyomó","Vágott B5 (pontos mérettől függetlenül)","Borító 4+4          Belív 1+1 (fekete)","Belív 12 oldal                 Borító 4 oldal","Borító matt fóliázva","irkafűzött",55200,null,null,null,8000,12000]
[{"$nulls":5},"Belív 20 oldal                 Borító 4 oldal",null,null,64200,null,null,null,15000,20000]
[{"$nulls":5},"Belív 28 oldal                 Borító 4 oldal",null,null,75500,null,null,null,22000,28000]
[{"$nulls":5},"Belív 36 oldal                 Borító 4 oldal",null,null,85150,null,null,null,32000,38000]
[{"$nulls":4},"Borító 4+4          Belív 4+4","Belív 12 oldal                 Borító 4 oldal",null,null,71250,null,null,null,8000,12000]
[{"$nulls":5},"Belív 16 oldal                 Borító 4 oldal",null,null,71300,null,null,null,12000,16000]
[{"$nulls":5},"Belív 20 oldal                 Borító 4 oldal",null,null,83700,null,null,null,15000,20000]
[{"$nulls":5},"Belív 24 oldal                 Borító 4 oldal",null,null,90850,null,null,null,18000,24000]
[{"$nulls":5},"Belív 28 oldal                 Borító 4 oldal",null,null,102350,null,null,null,22000,28000]
[{"$nulls":5},"Belív 32 oldal                 Borító 4 oldal",null,null,112500,null,null,null,26000,32000]
[{"$nulls":5},"Belív 36 oldal                 Borító 4 oldal",null,null,118400,null,null,null,32000,38000]
[null,1000,"Borító300 g/m2 műnyomó                        Belív 130 g/m2 műnyomó","Vágott B5 (pontos mérettől függetlenül)","Borító 4+4          Belív 1+1 (fekete)","Belív 12 oldal                 Borító 4 oldal","Borító matt fóliázva","irkafűzött",74200,null,null,null,8000,12000]
[{"$nulls":5},"Belív 20 oldal                 Borító 4 oldal",null,null,86200,null,null,null,15000,20000]
[{"$nulls":5},"Belív 28 oldal                 Borító 4 oldal",null,null,104600,null,null,null,22000,28000]
[{"$nulls":5},"Belív 36 oldal                 Borító 4 oldal",null,null,119600,null,null,null,32000,38000]
[{"$nulls":4},"Borító 4+4          Belív 4+4","Belív 12 oldal                 Borító 4 oldal",null,null,89200,null,null,null,8000,12000]
[{"$nulls":5},"Belív 16 oldal                 Borító 4 oldal",null,null,89300,null,null,null,12000,16000]
[{"$nulls":5},"Belív 20 oldal                 Borító 4 oldal",null,null,105400,null,null,null,15000,20000]
[{"$nulls":5},"Belív 24 oldal                 Borító 4 oldal",null,null,114300,null,null,null,18000,24000]
[{"$nulls":5},"Belív 28 oldal                 Borító 4 oldal",null,null,132600,null,null,null,22000,28000]
[{"$nulls":5},"Belív 32 oldal                 Borító 4 oldal",null,null,132800,null,null,null,26000,32000]
[{"$nulls":5},"Belív 36 oldal                 Borító 4 oldal",null,null,152500,null,null,null,32000,38000]
[{"$nulls":8},{"$f":"SUM(I117:I149)","v":2952800},{"$f":"SUM(J117)","v":4000},{"$f":"SUM(K117)","v":5000},{"$f":"SUM(L117)","v":15000},{"$f":"SUM(M117:M149)","v":630000},{"$f":"SUM(N117:N149)","v":804000}]
[null,"mennyiség (db)","DVD rész \nmegnevezés","papírminőség","méret","szín","terjedelem","megjegyzés","Nyomdai kivitelezés díja (nettó Ft/össz. db)","Alapterv/mester dvd készítés díja (nettó Ft/alkalom)","Szerkesztés, tördelés díja (nettó Ft/alkalom)"]
["DVD garnitúra, számítógépes és asztali DVD lejátszón elinduló tartalommal",150,"CD papírtok borító nyomás",null,"kiterített méret: 245*153 mm\ngerincméret: \nnincs","4+4",null,"írásbeli szempontrendszer alapján, mester DVD előállítása menürendszerrel. Mpeg, avi, pdf stb... fileok felhasználásával, 5 menüpont kialakításával és tartalmi feltöltésével, mester dvd előállítása, dvd tartalom szerkesztése",30540,80000,15000]
[null,null,"DVD felület \nnyomtatás és sokszorosítás",null,null,"4+0",null,null,27187.5,null,1500]
[null,null,"DVD garnitúra\nösszeállítása",{"$nulls":5},3500]
[null,200,"CD papírtok borító nyomás",null,"kiterített méret: 245*153 mm\ngerincméret: \nnincs","4+4",null,"írásbeli szempontrendszer alapján, mester DVD előállítása menürendszerrel. Mpeg, avi, pdf stb... fileok felhasználásával, 5 menüpont kialakításával és tartalmi feltöltésével, mester dvd előállítása, dvd tartalom szerkesztése",32800,80000,15000]
[null,null,"DVD felület \nnyomtatás és sokszorosítás",null,null,"4+0",null,null,34750,null,1500]
[null,null,"DVD garnitúra\nösszeállítása",{"$nulls":5},5000]
[null,300,"CD papírtok borító nyomás",null,"kiterített méret: 245*153 mm\ngerincméret: \nnincs","4+4",null,"írásbeli szempontrendszer alapján, mester DVD előállítása menürendszerrel. Mpeg, avi, pdf stb... fileok felhasználásával, 5 menüpont kialakításával és tartalmi feltöltésével, mester dvd előállítása, dvd tartalom szerkesztése",36570,80000,15000]
[null,null,"DVD felület \nnyomtatás és sokszorosítás",null,null,"4+0",null,null,41700,null,1500]
[null,null,"DVD garnitúra\nösszeállítása",{"$nulls":5},7000]
[null,500,"CD papírtok borító nyomás",null,"kiterített méret: 245*153 mm\ngerincméret: \nnincs","4+4",null,"írásbeli szempontrendszer alapján, mester DVD előállítása menürendszerrel. Mpeg, avi, pdf stb... fileok felhasználásával, 5 menüpont kialakításával és tartalmi feltöltésével, mester dvd előállítása, dvd tartalom szerkesztése",44550,80000,15000]
[null,null,"DVD felület \nnyomtatás és sokszorosítás",null,null,"4+0",null,null,80625,null,1500]
[null,null,"DVD garnitúra\nösszeállítása",{"$nulls":5},10000]
[null,1000,"CD papírtok borító nyomás",null,"kiterített méret: 245*153 mm\ngerincméret: \nnincs","4+4",null,"írásbeli szempontrendszer alapján, mester DVD előállítása menürendszerrel. Mpeg, avi, pdf stb... fileok felhasználásával, 5 menüpont kialakításával és tartalmi feltöltésével, mester dvd előállítása, dvd tartalom szerkesztése",54500,80000,15000]
[null,null,"DVD felület \nnyomtatás és sokszorosítás",null,null,"4+0",null,null,152500,null,1500]
[null,null,"DVD garnitúra\nösszeállítása",{"$nulls":5},15000]
[null,1500,"CD papírtok borító nyomás",null,"kiterített méret: 245*153 mm\ngerincméret: \nnincs","4+4",null,"írásbeli szempontrendszer alapján, mester DVD előállítása menürendszerrel. Mpeg, avi, pdf stb... fileok felhasználásával, 5 menüpont kialakításával és tartalmi feltöltésével, mester dvd előállítása, dvd tartalom szerkesztése",44550,80000,15000]
[null,null,"DVD felület \nnyomtatás és sokszorosítás",null,null,"4+0",null,null,210000,null,1500]
[null,null,"DVD garnitúra\nösszeállítása",{"$nulls":5},20000]
[{"$nulls":8},{"$f":"SUM(I152:I169)","v":850772.5},{"$f":"SUM(J152:J169)","v":480000},{"$f":"SUM(K152:K169)","v":99000}]
[null,"mennyiség (db)","CD rész \nmegnevezés","papírminőség","méret","szín","terjedelem","megjegyzés","Nyomdai kivitelezés díja (nettó Ft/össz. db)","Alapterv/mester dvd készítés díja (nettó Ft/alkalom)","Szerkesztés, tördelés díja (nettó Ft/alkalom)"]
["Különböző anyagok CD-n való megjelentetése és sokszorosítása",500,"CD borító előlap nyomás","115g/m2 műnyomó","115*115 mm","Előlap: 4+4\n","2*1 oldal","írásbeli szempontrendszer alapján, mester CD előállítása menürendszerrel. Mpeg, avi, pdf stb... fileok felhasználásával, max. 5 menüponttal, mester cd előállítása, cd tartalom szerkesztése, menürendszer létrehozása html, flash html felhasználásával",8100,80000,15000]
[null,null,"CD felület \nnyomtatás és sokszorosítás",null,null,"4+0",null,null,78125,null,1500]
[null,null,"CD slim tok",{"$nulls":5},24375]
[null,null,"CD garnitúra\nösszeállítása",{"$nulls":5},10000]
[null,1000,"CD borító előlap nyomás","115g/m2 műnyomó","115*115 mm","Előlap: 4+4\n","2*1 oldal","írásbeli szempontrendszer alapján, mester CD előállítása menürendszerrel. Mpeg, avi, pdf stb... fileok felhasználásával, max. 5 menüponttal, mester cd előállítása, cd tartalom szerkesztése, menürendszer létrehozása html, flash html felhasználásával",14300,80000,15000]
[null,null,"CD felület \nnyomtatás és sokszorosítás",null,null,"4+0",null,null,143750,null,1500]
[null,null,"CD slim tok",{"$nulls":5},48750]
[null,null,"CD garnitúra\nösszeállítása",{"$nulls":5},15000]
[{"$nulls":8},{"$f":"SUM(I172:I179)","v":342400},{"$f":"SUM(J172:J179)","v":160000},{"$f":"SUM(K172,K173,K176,K177)","v":33000}]
[null,"mennyiség (db)","papírminőség","méret","szín","terjedelem","kötészet",null,"Nyomdai kivitelezés díja (nettó Ft/össz. db)","Szerkesztés, tördelés díja (nettó Ft)"]
["Etikett",168,"matt öntapadó","70*35 mm","4+0","7 ív","A4-es íven szállítva, riztelve",null,4872,1000]
[null,336,"matt öntapadó","70*35 mm","4+0","14 ív","A4-es íven szállítva, riztelve",null,5376,1000]
[null,672,"matt öntapadó","70*35 mm","4+0","28 ív","A4-es íven szállítva, riztelve",null,6048,1000]
[null,1344,"matt öntapadó","70*35 mm","4+0","42 ív","A4-es íven szállítva, riztelve",null,7258,1000]
[{"$nulls":8},{"$f":"SUM(I182:I185)","v":23554},{"$f":"SUM(J182:J185)","v":4000}]
[null,"mennyiség (db)","papírminőség","méret","szín","terjedelem","kötészet",null,"Nyomdai kivitelezés díja (nettó Ft/össz. db)","Nyomdai előkészítés díja (ppt vagy egyéb nem nyomdai kompatibilis grafikai anyag esetén (nettó Ft)","Egyszerű gafikai tervezés, szerkesztés díja (1 komplett tervvariáció) (nettó Ft)"]
["Jegyzettömb",100,"80 g/m2 ofszet","A4","2+0","10 lap","enyvezve",null,21220,4000,5000]
[{"$nulls":5},"20 lap","enyvezve",null,23130]
[{"$nulls":5},"50 lap","enyvezve",null,34450]
[{"$nulls":4},"4+0","10 lap","enyvezve",null,20730]
[{"$nulls":5},"20 lap","enyvezve",null,22630]
[{"$nulls":5},"50 lap","enyvezve",null,32170]
[null,null,null,"A5","2+0","10 lap","enyvezve",null,20060]
[{"$nulls":5},"20 lap","enyvezve",null,20920]
[{"$nulls":5},"50 lap","enyvezve",null,24540]
[{"$nulls":4},"4+0","10 lap","enyvezve",null,19560]
[{"$nulls":5},"20 lap","enyvezve",null,20420]
[{"$nulls":5},"50 lap","enyvezve",null,24050]
[null,300,"80 g/m2 ofszet","A4","2+0","10 lap","enyvezve",null,28290]
[{"$nulls":5},"20 lap","enyvezve",null,40230]
[{"$nulls":5},"50 lap","enyvezve",null,73710]
[{"$nulls":4},"4+0","10 lap","enyvezve",null,27780]
[{"$nulls":5},"20 lap","enyvezve",null,39750]
[{"$nulls":5},"50 lap","enyvezve",null,67920]
[null,null,null,"A5","2+0","10 lap","enyvezve",null,22770]
[{"$nulls":5},"20 lap","enyvezve",null,27300]
[{"$nulls":5},"50 lap","enyvezve",null,44940]
[{"$nulls":4},"4+0","10 lap","enyvezve",null,22290]
[{"$nulls":5},"20 lap","enyvezve",null,26820]
[{"$nulls":5},"50 lap","enyvezve",null,44430]
[null,500,"80 g/m2 ofszet","A4","2+0","10 lap","enyvezve",null,39600]
[{"$nulls":5},"20 lap","enyvezve",null,58650]
[{"$nulls":5},"50 lap","enyvezve",null,114400]
[{"$nulls":4},"4+0","10 lap","enyvezve",null,39100]
[{"$nulls":5},"20 lap","enyvezve",null,58150]
[{"$nulls":5},"50 lap","enyvezve",null,105100]
[null,null,null,"A5","2+0","10 lap","enyvezve",null,28100]
[{"$nulls":5},"20 lap","enyvezve",null,37950]
[{"$nulls":5},"50 lap","enyvezve",null,66500]
[{"$nulls":4},"4+0","10 lap","enyvezve",null,27600]
[{"$nulls":5},"20 lap","enyvezve",null,37450]
[{"$nulls":5},"50 lap","enyvezve",null,66000]
[{"$nulls":8},{"$f":"SUM(I188:I223)","v":1428710},{"$f":"SUM(J188)","v":4000},{"$f":"SUM(K188)","v":5000}]
[null,"mennyiség (db)","papírminőség","méret","szín","kötészet",null,null,"Nyomdai kivitelezés díja (nettó Ft/össz. db)","Nyomdai előkészítés díja (ppt vagy egyéb nem nyomdai kompatibilis grafikai anyag esetén (nettó Ft)","Egyszerű gafikai tervezés, szerkesztés díja (pályázati arculat alapján 1 komplett tervvariáció) (nettó Ft)","Gafikai tervezés, szerkesztés díja (egyéb arculat alapján 3 komplett tervvariáció) (nettó Ft)"]
["Plakát",10,"170 g műnyomó","A0","4+0","vágva",null,null,40000,4000,8000,15000]
[null,null,null,"B1",{"$nulls":4},36191]
[null,null,null,"A1",{"$nulls":4},27000]
[null,null,null,"A2",{"$nulls":4},22730]
[null,null,null,"A3",{"$nulls":4},3580]
[null,null,null,"A4",{"$nulls":4},2690]
[{"$nulls":8},{"$f":"SUM(I226:I231)","v":132191},{"$f":"SUM(J226)","v":4000},{"$f":"SUM(K226)","v":8000},{"$f":"SUM(L226)","v":15000}]
["Meghívó","mennyiség (db)","papírminőség","méret","szín","konfekcionálás","kötészet",null,"Nyomdai kivitelezés díja (nettó Ft/össz. db)","Nyomdai előkészítés díja (ppt vagy egyéb nem nyomdai kompatibilis grafikai anyag esetén (nettó Ft)","Egyszerű gafikai tervezés, szerkesztés díja (1 komplett tervvariáció) (nettó Ft)"]
[null,100,"300 g/m2 műnyomó","A5","4+4","matt fólia 2 oldalon","biegelve, hajtva",null,8300,4000,5000]
[{"$nulls":8},{"$f":"SUM(I234)","v":8300},{"$f":"SUM(J234)","v":4000},{"$f":"SUM(K234)","v":5000}]
["Matrica","mennyiség (db)","papírminőség","méret","szín","konfekcionálás",null,null,"Nyomdai kivitelezés díja (nettó Ft/össz. db)","Nyomdai előkészítés díja (ppt vagy egyéb nem nyomdai kompatibilis grafikai anyag esetén (nettó Ft)","Egyszerű grafikai tervezés, szerkesztés díja (pályázati és egyéb arculat alapján 1 komplett tervvariáció) (nettó Ft)"]
[null,100,"184 g/m2 papír öntapadó","90*40 mm","4+0","ritzelve A4 íven szállítva",null,null,3800,1000,1500]
[{"$nulls":8},{"$f":"SUM(I237)","v":3800},{"$f":"SUM(J237)","v":1000},{"$f":"SUM(K237)","v":1500}]
["Mappa","mennyiség (db)","papírminőség","méret","szín","konfekcionálás","kötészet",null,"Nyomdai kivitelezés díja (nettó Ft/össz. db)","Nyomdai előkészítés díja (ppt vagy egyéb nem nyomdai kompatibilis grafikai anyag esetén (nettó Ft)","Egyszerű gafikai tervezés, szerkesztés díja (pályázati arculat alapján 1 komplett tervvariáció) (nettó Ft)","Grafikai tervezés, szerkesztés díja (egyéb arculat alapján 3 komplett tervvariáció) (nettó Ft)"]
[null,100,"350 g műnyomó","A4 kiadványt befogadó kiterített méret 45 cm széles, 31 cm magas, alsó lehajtható rész 6 cm, 5 mm-es gerinccel, alul-felül stancolt füllel stancolt névjegytartóval, vagy a megadott mérethez hasonló méret +-1 cm eltéréssel. A stancformát a cégnek kell biztosítani","4+0","fóliázva matt fóliával","A mappákat kiterített állapotban kérjük szállítani.",null,38300,4000,6000,12000]
[{"$nulls":8},{"$f":"SUM(I240)","v":38300},{"$f":"SUM(J240)","v":4000},{"$f":"SUM(K240)","v":6000},{"$f":"SUM(L240)","v":12000}]
["Leporelló","mennyiség (db)","papírminőség","méret","szín","kötészet",null,null,"Nyomdai kivitelezés díja (nettó Ft/össz. db)","Nyomdai előkészítés díja (ppt vagy egyéb nem nyomdai kompatibilis grafikai anyag esetén (nettó Ft)","Egyszerű gafikai tervezés, szerkesztés díja (pályázati arculat alapján 1 komplett tervvariáció) (nettó Ft)","Grafikai tervezés, szerkesztés díja (egyéb arculat alapján 3 komplett tervvariáció) (nettó Ft)"]
[null,50,"130 g műnyomó","A4 kétoldalas","4+4","kétszerhajtva",null,null,5050,4000,8000,15000]
[{"$nulls":8},{"$f":"SUM(I243)","v":5050},{"$f":"SUM(J243)","v":4000},{"$f":"SUM(K243)","v":8000},{"$f":"SUM(L243)","v":15000}]
["Névjegykártya","mennyiség (db)","papírminőség","méret","szín","kötészet",null,null,"Nyomdai kivitelezés díja (nettó Ft/össz. db)","Nyomdai előkészítés díja (ppt vagy egyéb nem nyomdai kompatibilis grafikai anyag esetén (nettó Ft)","szerkesztés meglévő arculat alapján nevenként (nettó Ft)"]
[null,50,"300g/m2 műnyomó","90*50 mm","2+2","vágva",null,null,17000,1000,1500,"db * függetlenül attól, hogy hányféle névjegykártya gyártódik egyszerre"]
[{"$nulls":8},{"$f":"SUM(I246)","v":17000},{"$f":"SUM(J246)","v":1000},{"$f":"SUM(K246)","v":1500}]
["Papírtáska","mennyiség (db)","papírminőség","méret","szín","konfekcionálás","fül",null,"Nyomdai kivitelezés díja (nettó Ft/össz.db)","Nyomdai előkészítés díja (ppt vagy egyéb nem nyomdai kompatibilis grafikai anyag esetén (nettó Ft)","Egyszerű gafikai tervezés, szerkesztés díja (pályázati arculat alapján 1 komplett tervvariáció) (nettó Ft)","Gafikai tervezés, szerkesztés díja (egyéb arculat alapján 3 komplett tervvariáció) (nettó Ft)"]
[null,50,"170 g/m2 műnyomó","250*340*110 mm","4+0","egy oldal fényes fólia, stancolva, beigelve, összeállítva","stenderd zsinórfüllel",null,57000,4000,6000,15000]
[{"$nulls":8},{"$f":"SUM(I249)","v":57000},{"$f":"SUM(J249)","v":4000},{"$f":"SUM(K249)","v":6000},{"$f":"SUM(L249)","v":15000}]
["Kitűző","mennyiség (db)","papírminőség","méret","szín","kivitel","kötészet",null,"Nyomdai kivitelezés díja (nettó Ft/össz. db)","Nyomdai előkészítés díja (ppt vagy egyéb nem nyomdai kompatibilis grafikai anyag esetén (nettó Ft)","szerkesztés meglévő arculat alapján nevenként (nettó Ft)"]
[null,50,"250 g/m2 matt karton","80*80 mm","4+0","hátoldalt középen öntapadós csipesz biztosítótűvel felragasztva","vágva",null,9700,1000,1500]
[{"$nulls":8},{"$f":"SUM(I252)","v":9700},{"$f":"SUM(J252)","v":1000},{"$f":"SUM(K252)","v":1500}]
["Oklevél","mennyiség (db)","papírminőség","méret","szín",null,null,null,"Nyomdai kivitelezés díja (nettó Ft/össz. db)","Nyomdai előkészítés díja (ppt vagy egyéb nem nyomdai kompatibilis grafikai anyag esetén (nettó Ft)","Egyszerű gafikai tervezés, szerkesztés díja (pályázati arculat alapján 1 komplett tervvariáció) (nettó Ft)","Gafikai tervezés, szerkesztés díja (egyéb arculat alapján 3 komplett tervvariáció) (nettó Ft)"]
[null,50,"300 g/m2 műnyomó","A4","4+0",null,null,null,4650,4000,6000,8000]
[{"$nulls":8},{"$f":"SUM(I255)","v":4650},{"$f":"SUM(J255)","v":4000},{"$f":"SUM(K255)","v":6000},{"$f":"SUM(L255)","v":8000}]
["Személyi iratgyűjtő tasak","mennyiség (db)","papírminőség","méret","szín","kivitel",null,null,"Nyomdai kivitelezés díja (nettó Ft/össz. db)","Nyomdai előkészítés díja (ppt vagy egyéb nem nyomdai kompatibilis grafikai anyag esetén (nettó Ft)","Minimális szöveg szerkesztés, tördelés díja (nettó Ft)"]
[null,50,"190 g/m2 fehér karton","Kiterített méret: 45*31 cm","elülső oldal 1 (fekete) színnel nyomva","egyszer hajtva, 3 oldalon (alul, felül és a hajtott oldalon) 3 cm széles, kék színű „szövet szerű” csíkkal ragasztva",null,null,26500,4000,5000]
[{"$nulls":8},{"$f":"SUM(I258)","v":26500},{"$f":"SUM(J258)","v":4000},{"$f":"SUM(K258)","v":5000}]
["Szórólap","mennyiség (db)","papírminőség","méret","szín",null,null,null,"Nyomdai kivitelezés díja (nettó Ft/össz. db)","Nyomdai előkészítés díja (ppt vagy egyéb nem nyomdai kompatibilis grafikai anyag esetén (nettó Ft)","Egyszerű gafikai tervezés, szerkesztés díja (pályázati arculat alapján 1 komplett tervvariáció) (nettó Ft)","Gafikai tervezés, szerkesztés díja (egyéb arculat alapján 3 komplett tervvariáció) (nettó Ft)"]
[null,100,"90 g/m2 ofszet","A4","4+0",null,null,null,6400,4000,6000,8000]
[{"$nulls":8},{"$f":"SUM(I261)","v":6400},{"$f":"SUM(J261)","v":4000},{"$f":"SUM(K261)","v":6000},{"$f":"SUM(L261)","v":8000}]
{"$rows_empty":7}
[{"$nulls":5},"Oszlopok mindösszesen:",null,null,{"$f":"SUM(I262,I259,I256,I253,I250,I247,I244,I241,I238,I235,I232,I224,I186,I180,I170,I150,I115,I103,I29,I21,I13,I7)","v":23371617.5},{"$f":"SUM(J262,J259,J256,J253,J250,J247,J244,J241,J238,J235,J232,J224,J186,J180,J170,J150,J115,J103,J29,J21,J13,J7)","v":712000},{"$f":"SUM(K262,K259,K256,K253,K250,K247,K244,K241,K238,K235,K232,K224,K180,K170,K150,K115,K103,K29,K21,K13,K7)","v":229000},{"$f":"SUM(L262,L256,L250,L244,L241,L232,L150,L115,L103,L29,L21, L13,L7)","v":160500},{"$f":"SUM(M150,M115,M103,M29,M21,M13)","v":1349000},{"$f":"SUM(N150,N115,N103,N29,N21,N13)","v":1695460}]
[{"$nulls":5},"Összehasonlítás érdekében kalkulált nettó ajánlati ár (I+J+K+L+M+N):",null,null,null,{"$f":"SUM(I270,J270,K270,L270,M270,N270)","v":27517577.5}]
[]
["Minden nyomdai termék esetében a forrás anyag, a monitor optimalizált pdf, és a nyomdakész pdf a Megrendelő tulajdonát képezi, a hozzá kapcsolódó szerzői jogokkal együtt."]
["Teljesítésigazolás kiállításának a feltétele a Megrendelő részéről: A legyártott mennyiségnek és minőségnek, valamint határidőnek való megfelelés. A gyártott nyomdai termékek forrás anyagának/a monitor optimalizált pdf/nyomdakész pdf átadása fizikai adathordozón."]
[]
["A sárgával jelölt területeket nem kell beárazni."]